Workbook

Sheet Developer& reviewer comments (hidden)
B2: Notes, questions, comments
A4: 2.1 | B4: literature source: needs to include models
A5: 2.1 | B5: NSP Program Area | C5: NSP Interventions | D5: not comprehensive enough and difficult to add categories

Sheet 1. Workbook Overview
B3: Section | C3: Sheet # | D3: Sheet Name | F3: Guideline Chapter | G3: Purpose
B5: 1. Preparatory Work | C5: 1.1 | D5: Background | F5: Chapter 3,11,12 | G5: Summarize costing purpose & overall methodology
C6: 1.2 | D6: Stakeholders | F6: Chapter 3 & 11 | G6: Maintain an inventory of all the stakeholders relevant to NSP costing process
C7: 1.3 | D7: NSP prioritisation | F7: Chapter 3 | G7: Collate CEA evidence and share key efficiency questions with NSP teams
C8: 1.4 | D8: Interventions | F8: Chapter 4 | G8: Collect and update information and details on each intervention that needs to be costed
C9: 1.5 | D9: Work Tracker | F9: Chapter 4 | G9: Track costing process, decisions, and methodology
B11: 2. Building Unit Costs | C11: 2.1 | D11: Literature Review | F11: Chapter 7 | G11: Review and select most appropriate unit costs from literature
C12: 2.2 | D12: Adapting Unit Costs | F12: Chapter 7 | G12: Adapt unit costs from literature for inflation, unit of output, and/or programmatic context
C13: 2.3 | D13: IBC Unit costs | F13: Chapter 8 | G13: Model costs using ingredients based costing
C14: 2.4 | D14: IBC Common ingredients | F14: Chapter 8 | G14: List common inputs to ensure consistency
B16: 3. Putting it all together | C16: 3.1 | D16: Unit Costs | F16: Chapter 9 | G16: Collate intervention unit costs from the IBC and Adaptation tabs, inputs for GOALS
C17: 3.3 | D17: Population coverage | F17: Chapter 9 | G17: Estimate coverage by population and year
C18: 3.4 | D18: Total Costs | F18: Chapter 9 | G18: Estimates the total NSP budget
B20: 4. Further Analysis | C20: 4.1 | D20: Efficiency Analysis | F20: Chapter 10 | G20: Identify critical in-efficiencies, solutions and the impact on unit costs
C21: 4.2 | D21: Sensitivity & Scenarios | F21: Chapter 10 | G21: Estimate the impact of internal assumptions and external changes on unit and or total costs
C22: 4.3 | D22: Benefit incidence analysis (only if accompanied by outputs from the Goals model) | F22: NA | G22: Not in this version yet
B24: 5. Final Reports | C24: 5.1 | D24: TRAC | F24: Chapter 11 | G24: Transparently report costing and verify key elements considered for each unit cost
C25: 5.2 | D25: Presenting Results | F25: Chapter 11 | G25: Generate cost tables and figures to share results

Sheet 1.1 Background
C3: NSP COSTING BACKGROUND
C7: Instructions: | D7: Summarize costing purpose & overall methodology
C9: Relevant Guidelines Chapters: | D9: Chapter 3 - Defining scope & purpose
D10: Chapter 10 - Sensitivity and technical efficiency and budget impact analysis
D11: Chapter 11 - Transparent reporting and analysis for costing checklist
C13: Name of Lead Costing Analyst
C14: Submission Date
C15: Country
C16: Title of Project
C17: Strategic Plan Start Year
C18: Strategic Plan End Year | K18: Indicate that cells are dependencies
C20: Country Background
C21: Geographic Region
C22: Country Income Level
C25: Overall Methods
C26: Costing Aim | D26: Other (please specify) | E26: Provide additional details here
C27: Costing Currency
C28: Costing Year
C29: Source for currency conversion rates | D29: Historical Currency Converter | OANDA
C30: currency per USD | E30: 11/3/2025 Oanda
C31: Source of historial inflation rates | D31: A Global Database of Inflation | E31: for example: https://www.worldbank.org/en/research/brief/inflation-database
C32: average Inflation rate
C33: Method for applying inflation adjustments | D33: [Value *(1+average inflation)(Current costing year-Original data year)] | E33: See e.g. Turner 2019 VALUE HEALTH. 2019; 22(9):1026–1032 https://doi.org/10.1016/j.jval.2019.03.021 or Kumaranayake 2000 Health Policy Planning doi: 10.1093/heapol/15.2.230
C34: Were costs projected using adjusted inflation to future year costs | E34: If yes, enter annual inflation rate(s) used. If no, justify here. For example: "Yes, 3%" or "No, the costing is all presented in 2024 USD, so will need inflation adjustments when applying to budgetting"
C35: Perspective | E35: Specify whose costs are included here, e.g. Only MoH, all governement (includes other sectors to be named), All providers (public, private), societal (includes user costs)
C37: Financial/Economic | E37: Specify any exceptions here
C38: Full/Incremental | E38: If incremental, specify baseline here. If exceptions specify here
C39: Normative/Observed | E39: Are intervention costs estimated based on observed implementation or from best practice/ guidelines (normative). Specify any exceptions here
C41: Modeling Software
C42: Modeling sofware | E42: Are you using modelling software to estimate impact and or total costs, e.g. Integrated Health Tool, Resource Needs Model?
C44: Parameters to explore in Sensitivity, efficiency and scenario analyses
C45: Parameter names | D45: Potential Values | E45: list parameters here, with base value and high and low values in this text to ensure you are able to return to the base value at the end, name these cells so they are used in the analyses. This analysis will be carried out in practice in the sensitivity analysis Tab (4.2).
C46: P1 | E46: base, low, high
C47: P2 | E47: base, low, high
C48: P3 | E48: base, low, high
C49: P4 | E49: base, low, high
C50: P5 | E50: base, low, high
C51: P6 | E51: base, low, high
C52: P7 | E52: base, low, high
C53: P8 | E53: base, low, high
C54: P9 | E54: base, low, high
C55: P10 | E55: base, low, high
C59: Log for assumptions & potential sensitivity, efficiency and scenarios log
C61: Days worked per year | D61: 217
C62: Hours worked per day | D62: 6
C63: number of HIV tests a provider can do per day | D63: 7

Sheet 1.2 Stakeholders
C3: CHAPTER 3: COLLABORATION IN THE NSP PROCESS
C4: Purpose of this tool: To keep track of all the different stakeholders, key informants, and their contacts throughout the NSP costing process.
A7: NSP Framework | E7: Contact Information | G7: Data Collection | H7: Communication
A8: Name | B8: Title/Job Function | C8: NSP TWG/Team | D8: NSP Role | E8: Email | F8: Phone | G8: Information needed from individual | H8: Frequency of communication needed

Sheet 1.3 Informing NSP priorities
B3: CHAPTER 3: COLLABORATION IN THE COSTING PROCESS
B5: Generating rapid cost-effectiveness evidence for priority setting
B8: 1. Template for sharing CEA evidence
B9: Prevention | C9: Evidence on cost | D9: Evidence on cost per HIV infection averted | E9: Source
B10: FSW HIV prevention
B11: FSW PrEP
B12: MSW HIV prevention
B13: MSW PrEP
B14: MSM HIV prevention
B15: MSM PrEP
B16: Transgender HIV prevention
B17: Transgender PrEP
B18: PWID outreach/peer education
B19: PWID PrEP
B20: PWID needle and syringe exchange programme
B21: PWID Opiate Substitution Therapy
B22: Prisoners PrEP
B23: Prisoners NSEP
B24: STI treatment
B25: Prevention of HIV through counselling and provision of condoms and lubricants
B26: AGYW PREP
B27: Comprehensive sexuality education (adolescents)
B28: VMMC
B29: Adult Female PrEP
B30: Adult Male PrEP
B31: Post-exposure prophylaxis (PEP)
B32: Testing, treatment and care
B33: HIV testing
D34: Evidence on cost per HIV death averted | E34: Source
B35: Adult treatment (Male)
B36: Adult treatment (Female)
B37: Paediatric treatment
B39: Social enablers
B40: Enabling legal environments
B41: Legal literacy (“Know Your Rights”)
B42: Advocacy support and capacity building for community-led organizations,
B43: Increasing access to justice
B44: Paralegal services
B45: Ensuring rights-based law enforcement practices:
B46: Training of law enforcement
B47: Improving laws, regulations and polices relating to HIV and HIV/TB
B48: Review of laws and law enforcement practices to gauge impact
B49: Training and sensitisation of: judges, lawyers; parliamentarians; community leaders including religious leaders.
B50: Reduction of stigma and discrimination:
B51: Reducing Human Rights related Barriers to Services
B52: Eliminating stigma and discrimination in all settings
B53: Ensuring non-discriminatory provision of health care
B54: Community led Monitoring
B55: Reduction of harmful gender social norms and promotion of gender-transformative approaches:
B56: Reducing HIV-related gender discrimination, harmful gender norms and violence against women and girls in all their diversity
B57: Increased sexual autonomy of adolescent girls and women of all ages
B58: Reduction in harmful masculinities
B59: Prevention of gender-based violence against adolescent girls, WLHIV, PLHIV, transwomen and men, sex workers, users of drugs (including women users of drugs), gender diverse individuals
B60: Prevention of intimate partner violence
B61: Supporting women’s leadership
B62: Social protection
B63: Socioeconomic support for orphans and vulnerable children
B64: Economic empowerment or cash transfers
B65: Food and nutrition programmes
B68: Basic Efficiency questions for the NSP teams to consider while priority setting:
B70: 1. In the budget for the existing NSP, what are the most expensive components? Which intervention makes up the largest share of the budget? These are likely the areas for greatest efficiency impact.
B71: 2. What percentage of all HIV/AIDS funds are allocated to program management? How does this compare to other similar countries? How are these distributed to the different levels of the system?
B72: a. Are there plans to either increase or decrease program management costs as a percentage of the entire NSP budget?
B73: b. How will these resources be allocated to/deducted from program management?
B74: c. What are the risks to programme implementation quality of reducing the management at different levels of the system?
B75: 3. What concerns currently exist regarding having a fully functional supply chain system for the delivery of HIV services in the country? Where is the weakest link? For example, how long does it take commodities to clear customs, then be delivered to central and regional warehouses and to facilities? Are frontline stock-outs frequently reported?
B76: a. How will these concerns be addressed in the new NSP?
B77: 4. What opportunities exist for combining HIV interventions with other HIV prevention (e.g., integrating PrEP into AGYW programs) or other health programs (incorporating HIV programs into NCD, child, maternal, SRHR, TB and Covid-19 interventions)?
B78: a. What data, if any, suggest that this could result in increased efficiency?
B79: b. To what extent would this affect the costs of each respective intervention? Can certain overhead costs be shared across programs?
B80: c. May combining programmes increase reach and service uptake?
B81: 5. Could any of the interventions be delivered more efficiently if they were led and provided by community-led organizations (CLO)?
B82: a. If so, which interventions and how would this affect the costs of providing these services?
B83: b. Would there also be a change in quality and quantity of coverage?
B84: c. Can this be quantified?
B85: 6. Could any of the interventions be delivered more efficiently if they were provided at a community-based location rather than in a facility?
B86: a. If so, which interventions and how would this affect the costs of providing these services?
B87: b. How would this affect service uptake?
B88: c. Would there also be a change in quality of coverage? Can this be quantified?
B89: 7. Have the most efficient service delivery models been adopted: including:
B90: a. targeted testing and prevention to highest incidence populations, geographic regions, and age groups (for VMMC).
B91: b. Is universal PMTCT in place?
B92: c. Is HIV self-testing available in high burden low coverage testing settings, with support for linkage to care?
B93: d. Are interventions delivered by the most appropriate level of staff? It should be noted that while task-shifting to lower cadres may appear to save costs, it is not efficient if the quality or uptake of services drop, so careful monitoring of impact will need to be proposed.
B94: e. Are there steps in the processes that could be streamlined, for example by reducing the numbers of visits or the number of HCWs attending to clients at each visit? Reducing the number of required lab tests?
B95: f. Are different staff members experiencing gaps in their workdays due to low demand from clients/ users?
B96: g. Are all the needed supplies, drugs and diagnostics in stock and available?
B97: 8. In reviewing the treatment programme, what are the existing interventions that could be leveraged to make the program more efficient? Past examples that have had large impacts were introduction of: multi-month scripting, differentiated service delivery, changing antiretroviral drugs regimens, etc.)?
B98: 9. Are there plans for expanding of Prep, or provision of PrEP as vaginal ring or as long-acting injectable PrEP. These programmes will need close evaluation to understand opportunities for efficiency gains in practice: for them to increase efficiency, there would need to be gains in uptake and/or adherence, as they will likely have higher unit costs, at least in the short term.
B99: 10. Demand constraints: Where are staff not optimally used due to low service uptake and is there an obvious way to increase client uptake/ create demand, with the aim of more optimally using staff resources?

Sheet 1.4 Interventions
C3: CHAPTER 5: REVIEWING INTERVENTIONS TO BE COSTED
C4: Purpose of this tool: Collect baseline information on each intervention that needs to be included in the costing. Allows cost analysts to show their due diligence in aligning NSP with costing work, while collecting and documenting key information on each intervention to facilitate costing.
C5: Red cells: required information
C6: Blue cells: information to keep updated
C7: Remaining cells: additional useful information
B11: Intervention # | C11: Intervention Short Name | D11: Objective | E11: Sub-objective | F11: Roll-up Category | G11: Target population(s) | I11: Delivery Platform(s) | J11: Implementer | L11: Scale | M11: New/Routine | O11: Activity Details
B12: Line | C12: List every intervention identified by the TWG | D12: What strategic objective/ intervention category does the intervention belong to? | E12: What program area does the intervention relate to? | F12: Optional: A set of categories that can be used for grouping results. | G12: What population(s) does this intervention seek to target? Specify 'no information provided' if not stated/indicated by TWG | H12: Additional details | I12: At what site level is this intervention expected to be delivered? (example: facility or community level) Specify 'no information provided' if not stated/indicated by TWG | J12: Who is delivering this intervention?: Organizational type or sector (ex: International NGO, national NGO, government, | K12: Additional details (ex: name of organization) | L12: At what general scale is this intervention expected to take place? | M12: Is this a new or routine intervention? If new, has it formerly been piloted in the country? If routine, does the TWG expect there to be changes/adaptations to its approach? | N12: Additional Details on expected changes | O12: Who can provide additional details on this intervention, if necessary? | P12: How will this intervention be delivered? What activities are described? Update cell overtime, as further information is collected. | Q12: Final source(s). May be mix of people & documents.
B13: 1 | C13: Comprehensive HIV testing services - provider initiated | D13: 1. Accelerate prevention to reduce new HIV, TB and STI infections. | E13: 1.1.2 Implement targeted combination prevention services tailored to setting and population | F13: HTS
B14: 2 | C14: Medical male circumcision | D14: 1. Accelerate prevention to reduce new HIV, TB and STI infections. | E14: 1.1.2 Implement targeted combination prevention services tailored to setting and population | F14: medical male circumcision
B15: 3 | C15: Curriculum based Comprehensive Sexuality Education in schools using scripted lesson plans | D15: 1. Accelerate prevention to reduce new HIV, TB and STI infections. | E15: 1.1.2 Implement targeted combination prevention services tailored to setting and population | F15: Comprehensive sexuality education in and out of school
B16: 4 | C16: Strengthen youth friendly services for adolescents and youth through the DOH public health care system | D16: 1. Accelerate prevention to reduce new HIV, TB and STI infections. | E16: 1.1.3 Provide sensitive and age-appropriate sexual and reproductive health services (SRH) and comprehensive sexuality education (CSE) | F16: Key and Vulnerable populations (mixed)
B17: 5 | C17: Provide oral PrEP to young women - 20 - 24 | D17: 1. Accelerate prevention to reduce new HIV, TB and STI infections. | E17: 1.1.3 Provide sensitive and age-appropriate sexual and reproductive health services (SRH) and comprehensive sexuality education (CSE) | F17: PREP
B18: 6 | C18: Accelerate ART initiation and retention in care for all PLHIV in a way that ensures equity - Adults | D18: 2. Reduce morbidity and mortality by providing treatment, care and adherence support for all. | E18: 2.1.2 90% of all people with diagnosed HIV infection receive sustained antiretroviral therapy | F18: Adherence
B19: 7 | C19: Combination prevention package targeting Adolescent girls and young women - 15 -19 years, in schools - youth club model | D19: 1. Accelerate prevention to reduce new HIV, TB and STI infections. | E19: 1.1.4 Provide Pre-Exposure Prophylaxis (PREP) to identified risk populations | F19: AGYW
B20: 8 | C20: Social mobilisation and education on rights and laws relevant to HIV and TB | D20: 3. Reach all key and vulnerable populations with comprehensive, customised and targeted interventions. | E20: 3.1.3 All key and vulnerable population programmes should adopt a peer educator led approach to implementation | F20: Human rights and stigma
B21: 9 | C21: Programme management costs for core government departments implementing the NSP | D21: 5. Ground the response to HIV, TB and STIs in human rights principles and approaches | E21: 5.2.1 Improve legal literacy about human rights and laws relevant to HIV and TB | F21: Programme Management, planning, co-ordination and oversight
B22: 10 | C22: Nationally co-ordinated multi media campaign targeting all risk groups in the general population | D22: 9. Critical enablers to maximise the reach and impact of National response to HIV, TB and STIs | E22: 9.1.4 Enabler 6: Programme management, planning, co-ordination and oversight | F22: SBCC
B23: 11
B24: 12
B25: 13
B26: 14
B27: 15
B28: 16
B29: 17
B30: 18
B31: 19
B32: 20
B33: 21
B34: 22
B35: 23
B36: 24
B37: 25
B38: 26
B39: 27
B40: 28
B41: 29
B42: 30
B43: 31
B44: 32
B45: 33
B46: 34
B47: 35
B48: 36
B49: 37
B50: 38
B51: 39
B52: 40
B53: 41
B54: 42
B55: 43
B56: 44
B57: 45
B58: 46
B59: 47
B60: 48
B61: 49
B62: 50
B63: 51
B64: 52
B65: 53
B66: 54
B67: 55
B68: 56
B69: 57
B70: 58
B71: 59
B72: 60
B73: 61
B74: 62
B75: 63
B76: 64
B77: 65
B78: 66
B79: 67
B80: 68
B81: 69
B82: 70
B83: 71
B84: 72
B85: 73
B86: 74
B87: 75
B88: 76
B89: 77
B90: 78
B91: 79
B92: 80
B93: 81
B94: 82
B95: 83
B96: 84
B97: 85
B98: 86
B99: 87
B100: 88
B101: 89
B102: 90
B103: 91
B104: 92
B105: 93
B106: 94
B107: 95
B108: 96
B109: 97
B110: 98

Sheet 1.5 Work Tracker
D3: WORKPLAN/TRACKER
E6: Preparation | J6: Work Tracker
C7: Intervention # | D7: Interventions | E7: Include in Costing? | G7: Big-ticket item | I7: Costing Method | J7: Status | K7: Notes on Status / Next Steps
D8: List every intervention identified by the TWG | E8: Is this intervention included in the costing? | F8: If partially or no, justify | G8: Is this a big-ticket item? See Chapter 6 for explanation of big-ticket items | H8: Will you conduct a process map? Note that interventions indicated as big-ticket items should all have process maps done. See chapter 5 for more information on process maps | I8: What methodological approach will you take to cost this intervention? See chapter 6 for more information on costing method.
D9: ='1.4 Interventions'!C13 -> Comprehensive HIV testing services - provider initiated | J9: Not started
D10: ='1.4 Interventions'!C14 -> Medical male circumcision | J10: Not started
D11: ='1.4 Interventions'!C15 -> Curriculum based Comprehensive Sexuality Education in schools using scripted lesson plans | J11: Not started
D12: ='1.4 Interventions'!C16 -> Strengthen youth friendly services for adolescents and youth through the DOH public health care system | J12: Not started
D13: ='1.4 Interventions'!C17 -> Provide oral PrEP to young women - 20 - 24 | J13: Not started
D14: ='1.4 Interventions'!C18 -> Accelerate ART initiation and retention in care for all PLHIV in a way that ensures equity - Adults | J14: Not started
D15: ='1.4 Interventions'!C19 -> Combination prevention package targeting Adolescent girls and young women - 15 -19 years, in schools - youth club model | J15: Not started
D16: ='1.4 Interventions'!C20 -> Social mobilisation and education on rights and laws relevant to HIV and TB | J16: Not started
D17: ='1.4 Interventions'!C21 -> Programme management costs for core government departments implementing the NSP | J17: Not started
D18: ='1.4 Interventions'!C22 -> Nationally co-ordinated multi media campaign targeting all risk groups in the general population | J18: Not started
D19: ='1.4 Interventions'!C23 -> 0 | J19: Not started
D20: ='1.4 Interventions'!C24 -> 0 | J20: Not started
D21: ='1.4 Interventions'!C25 -> 0 | J21: Not started
D22: ='1.4 Interventions'!C26 -> 0 | J22: Not started
D23: ='1.4 Interventions'!C27 -> 0 | J23: Not started
D24: ='1.4 Interventions'!C28 -> 0 | J24: Not started
D25: ='1.4 Interventions'!C29 -> 0 | J25: Not started
D26: ='1.4 Interventions'!C30 -> 0 | J26: Not started
D27: ='1.4 Interventions'!C31 -> 0 | J27: Not started
D28: ='1.4 Interventions'!C32 -> 0 | J28: Not started
D29: ='1.4 Interventions'!C33 -> 0 | J29: Not started
D30: ='1.4 Interventions'!C34 -> 0 | J30: Not started
D31: ='1.4 Interventions'!C35 -> 0 | J31: Not started
D32: ='1.4 Interventions'!C36 -> 0 | J32: Not started
D33: ='1.4 Interventions'!C37 -> 0 | J33: Not started
D34: ='1.4 Interventions'!C38 -> 0 | J34: Not started
D35: ='1.4 Interventions'!C39 -> 0 | J35: Not started
D36: ='1.4 Interventions'!C40 -> 0 | J36: Not started
D37: ='1.4 Interventions'!C41 -> 0 | J37: Not started
D38: ='1.4 Interventions'!C42 -> 0 | J38: Not started
D39: ='1.4 Interventions'!C43 -> 0 | J39: Not started
D40: ='1.4 Interventions'!C44 -> 0 | J40: Not started
D41: ='1.4 Interventions'!C45 -> 0 | J41: Not started
D42: ='1.4 Interventions'!C46 -> 0 | J42: Not started
D43: ='1.4 Interventions'!C47 -> 0 | J43: Not started
D44: ='1.4 Interventions'!C48 -> 0 | J44: Not started
D45: ='1.4 Interventions'!C49 -> 0 | J45: Not started
D46: ='1.4 Interventions'!C50 -> 0 | J46: Not started
D47: ='1.4 Interventions'!C51 -> 0 | J47: Not started
D48: ='1.4 Interventions'!C52 -> 0 | J48: Not started
D49: ='1.4 Interventions'!C53 -> 0 | J49: Not started
D50: ='1.4 Interventions'!C54 -> 0 | J50: Not started
D51: ='1.4 Interventions'!C55 -> 0 | J51: Not started
D52: ='1.4 Interventions'!C56 -> 0 | J52: Not started
D53: ='1.4 Interventions'!C57 -> 0 | J53: Not started
D54: ='1.4 Interventions'!C58 -> 0 | J54: Not started
D55: ='1.4 Interventions'!C59 -> 0 | J55: Not started
D56: ='1.4 Interventions'!C60 -> 0 | J56: Not started
D57: ='1.4 Interventions'!C61 -> 0 | J57: Not started
D58: ='1.4 Interventions'!C62 -> 0 | J58: Not started
D59: ='1.4 Interventions'!C63 -> 0 | J59: Not started
D60: ='1.4 Interventions'!C64 -> 0 | J60: Not started
D61: ='1.4 Interventions'!C65 -> 0 | J61: Not started
D62: ='1.4 Interventions'!C66 -> 0 | J62: Not started
D63: ='1.4 Interventions'!C67 -> 0 | J63: Not started
D64: ='1.4 Interventions'!C68 -> 0 | J64: Not started
D65: ='1.4 Interventions'!C69 -> 0 | J65: Not started
D66: ='1.4 Interventions'!C70 -> 0 | J66: Not started
D67: ='1.4 Interventions'!C71 -> 0 | J67: Not started
D68: ='1.4 Interventions'!C72 -> 0 | J68: Not started
D69: ='1.4 Interventions'!C73 -> 0 | J69: Not started
D70: ='1.4 Interventions'!C74 -> 0 | J70: Not started
D71: ='1.4 Interventions'!C75 -> 0 | J71: Not started
D72: ='1.4 Interventions'!C76 -> 0 | J72: Not started
D73: ='1.4 Interventions'!C77 -> 0 | J73: Not started
D74: ='1.4 Interventions'!C78 -> 0 | J74: Not started
D75: ='1.4 Interventions'!C79 -> 0 | J75: Not started
D76: ='1.4 Interventions'!C80 -> 0 | J76: Not started
D77: ='1.4 Interventions'!C81 -> 0 | J77: Not started
D78: ='1.4 Interventions'!C82 -> 0 | J78: Not started
D79: ='1.4 Interventions'!C83 -> 0 | J79: Not started
D80: ='1.4 Interventions'!C84 -> 0 | J80: Not started
D81: ='1.4 Interventions'!C85 -> 0 | J81: Not started
D82: ='1.4 Interventions'!C86 -> 0 | J82: Not started
D83: ='1.4 Interventions'!C87 -> 0 | J83: Not started
D84: ='1.4 Interventions'!C88 -> 0 | J84: Not started
D85: ='1.4 Interventions'!C89 -> 0 | J85: Not started
D86: ='1.4 Interventions'!C90 -> 0 | J86: Not started
D87: ='1.4 Interventions'!C91 -> 0 | J87: Not started
D88: ='1.4 Interventions'!C92 -> 0 | J88: Not started
D89: ='1.4 Interventions'!C93 -> 0 | J89: Not started
D90: ='1.4 Interventions'!C94 -> 0 | J90: Not started
D91: ='1.4 Interventions'!C95 -> 0 | J91: Not started
D92: ='1.4 Interventions'!C96 -> 0 | J92: Not started
D93: ='1.4 Interventions'!C97 -> 0 | J93: Not started
D94: ='1.4 Interventions'!C98 -> 0 | J94: Not started
D95: ='1.4 Interventions'!C99 -> 0 | J95: Not started
D96: ='1.4 Interventions'!C100 -> 0 | J96: Not started
D97: ='1.4 Interventions'!C101 -> 0 | J97: Not started
D98: ='1.4 Interventions'!C102 -> 0 | J98: Not started
D99: ='1.4 Interventions'!C103 -> 0 | J99: Not started
D100: ='1.4 Interventions'!C104 -> 0 | J100: Not started
D101: ='1.4 Interventions'!C105 -> 0 | J101: Not started
D102: ='1.4 Interventions'!C106 -> 0 | J102: Not started
D103: ='1.4 Interventions'!C107 -> 0 | J103: Not started
D104: ='1.4 Interventions'!C108 -> 0 | J104: Not started
D105: ='1.4 Interventions'!C109 -> 0 | J105: Not started
D106: ='1.4 Interventions'!C110 -> 0 | J106: Not started

Sheet 2.1 Literature Review
C3: CHAPTER 7: LITERATURE REVIEW
C4: Objective: | D4: Document findings from literature search by filling in columns A:G. Indicate if source cost will be used in NSP costing. If so, continue filling informations in columns I:AI, to justify use of this source cost and identify areas that may need adapations.
C6: Grey text | D6: Auto-filled, does not require manual entry
B9: NSP | D9: SOURCE | J9: UNIT COST | P9: INTEGRATED HEALTH TOOL INPUTS, if using IHT | T9: DATE CHECK | V9: GEOGRAPHY | Y9: GEO CHECK | AD9: POPULATION | AE9: POP CHECK | AF9: SOURCE METHODOLOGY | AI9: METHOD CHECK | AJ9: ACTIVITY SCOPE | AL9: SCOPE MATCH | AM9: NOTES
B10: NSP Program Area | C10: NSP Interventions | D10: Source Name | E10: Source Link | F10: Primary source? | G10: Source Type | H10: Source Intervention | I10: Use source/unit cost in costing? | J10: Unit Cost | K10: Output Unit | L10: Currency | M10: Year | N10: Today's Year | O10: Data Age | P10: staff time per visit in minutes | Q10: nr outpatient visits | R10: cost of medical supplies | S10: nr inpatient days | T10: Data Age | U10: Need to adjust for inflation? | V10: Country | W10: Region | X10: Country Income Level | Y10: NSP Country | Z10: NSP Region | AA10: NSP Country Income Level | AC10: Geographic Suitability | AD10: Target Population Category | AE10: POP Suitability | AF10: Modeled vs. Observed | AG10: Financial vs. Economic | AH10: Full vs. Incremental | AI10: Does this meet cost need/purpose | AJ10: Activity Scope | AK10: Delivery Platform(s) | AL10: Does this correspond to the NSP intervention? | AM10: Does this unit cost require adaptation? | AN10: Notes, explanation
B11: Link to 'Reviewing Interventions' | C11: Link to 'Reviewing Interventions' | D11: Author/Org, Year | E11: Add source url, if possible | F11: Confirm source is primary. If not primary source, justify. | G11: What kind of source is it? | H11: Intervention costed in source | I11: Indicate if this source is used in NSP Costing. If not, stop data entry here. If yes, please justify use of source by filling in remaining information. | J11: Indicate reported unit cost in source | K11: What is the unit of output or outcome measure reporeted | L11: Indicate currency cost is reported in | M11: Indicate what year costs are reported in (note, that cost year is not necessarily the same as publication year) | N11: Autofilled | O11: Autofilled | T11: Autofilled | U11: Autofilled | V11: Indicate source country | W11: Indicate source geographic region | X11: Indicate source country income level | Y11: Autofilled | Z11: Autofilled | AA11: Autofilled | AC11: Autofilled | AD11: Indicate target pouplation in source | AE11: Autofilled | AF11: Was the source cost estimated by modeling or from observation | AG11: Indicate if source cost is financial or economic | AH11: Indicate if source cost is full or incremental | AI11: Not autofilled. Based on Analyst's judgment. | AJ11: Briefly describe the intervention's activity scope | AK11: At what site level is this intervention expected to be delivered? (example: facility or community) | AL11: Not autofilled. Based on Analyst's judgment. | AM11: Indicate whether this unit cost requires adaptation or not | AN11: Add additional details
A12: 2 | B12: Prevention Services | C12: VMMC | D12: Investment Case, inf adjusted. Corroborated by Avenir study, 2016 | E12: https://doi.org/10.1371/journal.pone.0169710 | F12: Yes | I12: Yes | J12: 1504.014002 | K12: Cost per male circumcision | L12: ZAR | M12: 2017 | N12: =YEAR(TODAY()) -> 2025 | O12: =N12-M12 -> 8 | T12: =IF(O12>=10,"Data 10 years or older",O12) -> 8 | U12: =IF(N12=M12, "No", "Yes") -> Yes | V12: Malawi | W12: Eastern and Southern Africa | X12: Lower-Middle-Income Country | Y12: =_xlfn.IFS(V12="", "", '1.1 Background'!$D$18=V12, 1, '1.1 Background'!$D$18<>V12, 0) -> 0 | Z12: =_xlfn.IFS(W12="", "", '1.1 Background'!$D$21=W12, 1, '1.1 Background'!$D$21<>W12, 0) -> 0 | AA12: =_xlfn.IFS(X12="", "", '1.1 Background'!$D$22=X12, 1, '1.1 Background'!$D$22<>X12, 0) -> 0 | AB12: =IF(Y12="", "", (SUM(Y12:AA12))) -> 0 | AC12: =_xlfn.IFS(AB12="", "", AB12=3, "Strong match", AB12=2, "Ok match", AB12=1, "Ok match", AB12=0, "No match") -> No match | AD12: General Population | AE12: Match | AF12: Observed | AG12: Financial | AH12: Full | AI12: Yes | AK12: Community | AL12: Yes | AM12: No
A13: 4 | B13: Integrated Health Services | C13: Health system strengthening | D13: Adolescent & Youth Health Policy Costing Model, 2016. Includes training and provincial visits and assessments | F13: No | I13: Yes | J13: 17760153.5 | K13: Youth friendly PHC service | L13: ZAR | M13: 2017 | T13: =IF(O13>=10,"Data 10 years or older",O13) -> 0 | U13: =IF(N13=M13, "No", "Yes") -> Yes | Y13: =_xlfn.IFS(V13="", "", '1.1 Background'!$D$18=V13, 1, '1.1 Background'!$D$18<>V13, 0) ->  | Z13: =_xlfn.IFS(W13="", "", '1.1 Background'!$D$21=W13, 1, '1.1 Background'!$D$21<>W13, 0) ->  | AA13: =_xlfn.IFS(X13="", "", '1.1 Background'!$D$22=X13, 1, '1.1 Background'!$D$22<>X13, 0) ->  | AB13: =IF(Y13="", "", (SUM(Y13:AA13))) ->  | AC13: =_xlfn.IFS(AB13="", "", AB13=3, "Strong match", AB13=2, "Ok match", AB13=1, "Ok match", AB13=0, "No match") ->  | AE13: Match
A14: 9 | B14: Integrated Health Services | C14: Health system strengthening | D14: Derived from national and provincial budgets | F14: No | I14: Yes | J14: 690911879 | K14: Annual programme management cost per social protection departments | L14: ZAR | M14: 2017 | T14: 0 | U14: Yes | Y14: =_xlfn.IFS(V14="", "", '1.1 Background'!$D$18=V14, 1, '1.1 Background'!$D$18<>V14, 0) ->  | Z14: =_xlfn.IFS(W14="", "", '1.1 Background'!$D$21=W14, 1, '1.1 Background'!$D$21<>W14, 0) ->  | AA14: =_xlfn.IFS(X14="", "", '1.1 Background'!$D$22=X14, 1, '1.1 Background'!$D$22<>X14, 0) ->  | AC14: =_xlfn.IFS(AB14="", "", AB14=3, "Strong match", AB14=2, "Ok match", AB14=1, "Ok match", AB14=0, "No match") ->  | AE14: Match
B15: Prevention Services | C15: BCC | D15: Source: SA Investment Case. Aggregate of 2 national campaigns. Inflation adjusted | F15: No | I15: Yes | J15: 8.0899 | K15: Cost per pp reached by 2 national communication campaign pa | L15: ZAR | M15: 2017 | T15: 0 | U15: Yes | Y15: =_xlfn.IFS(V15="", "", '1.1 Background'!$D$18=V15, 1, '1.1 Background'!$D$18<>V15, 0) ->  | Z15: =_xlfn.IFS(W15="", "", '1.1 Background'!$D$21=W15, 1, '1.1 Background'!$D$21<>W15, 0) ->  | AA15: =_xlfn.IFS(X15="", "", '1.1 Background'!$D$22=X15, 1, '1.1 Background'!$D$22<>X15, 0) ->  | AC15: =_xlfn.IFS(AB15="", "", AB15=3, "Strong match", AB15=2, "Ok match", AB15=1, "Ok match", AB15=0, "No match") ->  | AE15: Match
B16: Prevention Services | C16: BCC | D16: Source: SA Investment Case. Inflation adjusted | F16: No | I16: Yes | J16: 10.988808 | K16: Cost per adolescent or youth reached by targeted multi-media communication campaign | L16: ZAR | M16: 2017 | T16: 0 | U16: Yes | Y16: =_xlfn.IFS(V16="", "", '1.1 Background'!$D$18=V16, 1, '1.1 Background'!$D$18<>V16, 0) ->  | Z16: =_xlfn.IFS(W16="", "", '1.1 Background'!$D$21=W16, 1, '1.1 Background'!$D$21<>W16, 0) ->  | AA16: =_xlfn.IFS(X16="", "", '1.1 Background'!$D$22=X16, 1, '1.1 Background'!$D$22<>X16, 0) ->  | AC16: =_xlfn.IFS(AB16="", "", AB16=3, "Strong match", AB16=2, "Ok match", AB16=1, "Ok match", AB16=0, "No match") ->  | AE16: Match
B17: Integrated Health Services | C17: Sexual Education and Health Services | D17: Schnippel K et al 2015, Plos One. Inflation adjusted | F17: Yes | I17: Yes | J17: 720 | K17: Cost per youth 15-24 receiving SRH service in non-health care setting | L17: ZAR | M17: 2017 | T17: =IF(O17>=10,"Data 10 years or older",O17) -> 0 | U17: =IF(N17=M17, "No", "Yes") -> Yes | Y17: =_xlfn.IFS(V17="", "", '1.1 Background'!$D$18=V17, 1, '1.1 Background'!$D$18<>V17, 0) ->  | Z17: =_xlfn.IFS(W17="", "", '1.1 Background'!$D$21=W17, 1, '1.1 Background'!$D$21<>W17, 0) ->  | AA17: =_xlfn.IFS(X17="", "", '1.1 Background'!$D$22=X17, 1, '1.1 Background'!$D$22<>X17, 0) ->  | AC17: =_xlfn.IFS(AB17="", "", AB17=3, "Strong match", AB17=2, "Ok match", AB17=1, "Ok match", AB17=0, "No match") ->  | AE17: Match | AN17: Cost includes fixed costs of fitted mobile vehicle and staff and variable costs of cervical cancer screening, STI management, condoms, contraceptives, HCT, breast exams and general health education.
A18: 6 | B18: Test & Treat | C18: ART | D18: SAG Costing model NACM Output March 2017. Scenario 1A: Current regimens and adherence strategy implementation | F18: No | I18: Yes | J18: 3389.740047 | K18: Average cost per adult on ART (public and private) | L18: ZAR | M18: 2017 | T18: 0 | U18: Yes | Y18: =_xlfn.IFS(V18="", "", '1.1 Background'!$D$18=V18, 1, '1.1 Background'!$D$18<>V18, 0) ->  | Z18: =_xlfn.IFS(W18="", "", '1.1 Background'!$D$21=W18, 1, '1.1 Background'!$D$21<>W18, 0) ->  | AA18: =_xlfn.IFS(X18="", "", '1.1 Background'!$D$22=X18, 1, '1.1 Background'!$D$22<>X18, 0) ->  | AC18: =_xlfn.IFS(AB18="", "", AB18=3, "Strong match", AB18=2, "Ok match", AB18=1, "Ok match", AB18=0, "No match") ->  | AE18: Match
T19: 0 | U19: No | Y19: =_xlfn.IFS(V19="", "", '1.1 Background'!$D$18=V19, 1, '1.1 Background'!$D$18<>V19, 0) ->  | Z19: =_xlfn.IFS(W19="", "", '1.1 Background'!$D$21=W19, 1, '1.1 Background'!$D$21<>W19, 0) ->  | AA19: =_xlfn.IFS(X19="", "", '1.1 Background'!$D$22=X19, 1, '1.1 Background'!$D$22<>X19, 0) ->  | AC19: =_xlfn.IFS(AB19="", "", AB19=3, "Strong match", AB19=2, "Ok match", AB19=1, "Ok match", AB19=0, "No match") ->  | AE19: Match
T20: 0 | U20: No | Y20: =_xlfn.IFS(V20="", "", '1.1 Background'!$D$18=V20, 1, '1.1 Background'!$D$18<>V20, 0) ->  | Z20: =_xlfn.IFS(W20="", "", '1.1 Background'!$D$21=W20, 1, '1.1 Background'!$D$21<>W20, 0) ->  | AA20: =_xlfn.IFS(X20="", "", '1.1 Background'!$D$22=X20, 1, '1.1 Background'!$D$22<>X20, 0) ->  | AC20: =_xlfn.IFS(AB20="", "", AB20=3, "Strong match", AB20=2, "Ok match", AB20=1, "Ok match", AB20=0, "No match") ->  | AE20: Match
T21: 0 | U21: No | Y21: =_xlfn.IFS(V21="", "", '1.1 Background'!$D$18=V21, 1, '1.1 Background'!$D$18<>V21, 0) ->  | Z21: =_xlfn.IFS(W21="", "", '1.1 Background'!$D$21=W21, 1, '1.1 Background'!$D$21<>W21, 0) ->  | AA21: =_xlfn.IFS(X21="", "", '1.1 Background'!$D$22=X21, 1, '1.1 Background'!$D$22<>X21, 0) ->  | AC21: =_xlfn.IFS(AB21="", "", AB21=3, "Strong match", AB21=2, "Ok match", AB21=1, "Ok match", AB21=0, "No match") ->  | AE21: Match
T22: 0 | U22: No | Y22: =_xlfn.IFS(V22="", "", '1.1 Background'!$D$18=V22, 1, '1.1 Background'!$D$18<>V22, 0) ->  | Z22: =_xlfn.IFS(W22="", "", '1.1 Background'!$D$21=W22, 1, '1.1 Background'!$D$21<>W22, 0) ->  | AA22: =_xlfn.IFS(X22="", "", '1.1 Background'!$D$22=X22, 1, '1.1 Background'!$D$22<>X22, 0) ->  | AC22: =_xlfn.IFS(AB22="", "", AB22=3, "Strong match", AB22=2, "Ok match", AB22=1, "Ok match", AB22=0, "No match") ->  | AE22: Match
T23: 0 | U23: No | Y23: =_xlfn.IFS(V23="", "", '1.1 Background'!$D$18=V23, 1, '1.1 Background'!$D$18<>V23, 0) ->  | Z23: =_xlfn.IFS(W23="", "", '1.1 Background'!$D$21=W23, 1, '1.1 Background'!$D$21<>W23, 0) ->  | AA23: =_xlfn.IFS(X23="", "", '1.1 Background'!$D$22=X23, 1, '1.1 Background'!$D$22<>X23, 0) ->  | AC23: =_xlfn.IFS(AB23="", "", AB23=3, "Strong match", AB23=2, "Ok match", AB23=1, "Ok match", AB23=0, "No match") ->  | AE23: Match
T24: 0 | U24: No | Y24: =_xlfn.IFS(V24="", "", '1.1 Background'!$D$18=V24, 1, '1.1 Background'!$D$18<>V24, 0) ->  | Z24: =_xlfn.IFS(W24="", "", '1.1 Background'!$D$21=W24, 1, '1.1 Background'!$D$21<>W24, 0) ->  | AA24: =_xlfn.IFS(X24="", "", '1.1 Background'!$D$22=X24, 1, '1.1 Background'!$D$22<>X24, 0) ->  | AC24: =_xlfn.IFS(AB24="", "", AB24=3, "Strong match", AB24=2, "Ok match", AB24=1, "Ok match", AB24=0, "No match") ->  | AE24: Match
T25: 0 | U25: No | Y25: =_xlfn.IFS(V25="", "", '1.1 Background'!$D$18=V25, 1, '1.1 Background'!$D$18<>V25, 0) ->  | Z25: =_xlfn.IFS(W25="", "", '1.1 Background'!$D$21=W25, 1, '1.1 Background'!$D$21<>W25, 0) ->  | AA25: =_xlfn.IFS(X25="", "", '1.1 Background'!$D$22=X25, 1, '1.1 Background'!$D$22<>X25, 0) ->  | AC25: =_xlfn.IFS(AB25="", "", AB25=3, "Strong match", AB25=2, "Ok match", AB25=1, "Ok match", AB25=0, "No match") ->  | AE25: Match
T26: 0 | U26: No | Y26: =_xlfn.IFS(V26="", "", '1.1 Background'!$D$18=V26, 1, '1.1 Background'!$D$18<>V26, 0) ->  | Z26: =_xlfn.IFS(W26="", "", '1.1 Background'!$D$21=W26, 1, '1.1 Background'!$D$21<>W26, 0) ->  | AA26: =_xlfn.IFS(X26="", "", '1.1 Background'!$D$22=X26, 1, '1.1 Background'!$D$22<>X26, 0) ->  | AC26: =_xlfn.IFS(AB26="", "", AB26=3, "Strong match", AB26=2, "Ok match", AB26=1, "Ok match", AB26=0, "No match") ->  | AE26: Match
T27: 0 | U27: No | Y27: =_xlfn.IFS(V27="", "", '1.1 Background'!$D$18=V27, 1, '1.1 Background'!$D$18<>V27, 0) ->  | Z27: =_xlfn.IFS(W27="", "", '1.1 Background'!$D$21=W27, 1, '1.1 Background'!$D$21<>W27, 0) ->  | AA27: =_xlfn.IFS(X27="", "", '1.1 Background'!$D$22=X27, 1, '1.1 Background'!$D$22<>X27, 0) ->  | AC27: =_xlfn.IFS(AB27="", "", AB27=3, "Strong match", AB27=2, "Ok match", AB27=1, "Ok match", AB27=0, "No match") ->  | AE27: Match
T28: 0 | U28: No | Y28: =_xlfn.IFS(V28="", "", '1.1 Background'!$D$18=V28, 1, '1.1 Background'!$D$18<>V28, 0) ->  | Z28: =_xlfn.IFS(W28="", "", '1.1 Background'!$D$21=W28, 1, '1.1 Background'!$D$21<>W28, 0) ->  | AA28: =_xlfn.IFS(X28="", "", '1.1 Background'!$D$22=X28, 1, '1.1 Background'!$D$22<>X28, 0) ->  | AC28: =_xlfn.IFS(AB28="", "", AB28=3, "Strong match", AB28=2, "Ok match", AB28=1, "Ok match", AB28=0, "No match") ->  | AE28: Match
T29: 0 | U29: No | Y29: =_xlfn.IFS(V29="", "", '1.1 Background'!$D$18=V29, 1, '1.1 Background'!$D$18<>V29, 0) ->  | Z29: =_xlfn.IFS(W29="", "", '1.1 Background'!$D$21=W29, 1, '1.1 Background'!$D$21<>W29, 0) ->  | AA29: =_xlfn.IFS(X29="", "", '1.1 Background'!$D$22=X29, 1, '1.1 Background'!$D$22<>X29, 0) ->  | AC29: =_xlfn.IFS(AB29="", "", AB29=3, "Strong match", AB29=2, "Ok match", AB29=1, "Ok match", AB29=0, "No match") ->  | AE29: Match
T30: 0 | U30: No | Y30: =_xlfn.IFS(V30="", "", '1.1 Background'!$D$18=V30, 1, '1.1 Background'!$D$18<>V30, 0) ->  | Z30: =_xlfn.IFS(W30="", "", '1.1 Background'!$D$21=W30, 1, '1.1 Background'!$D$21<>W30, 0) ->  | AA30: =_xlfn.IFS(X30="", "", '1.1 Background'!$D$22=X30, 1, '1.1 Background'!$D$22<>X30, 0) ->  | AC30: =_xlfn.IFS(AB30="", "", AB30=3, "Strong match", AB30=2, "Ok match", AB30=1, "Ok match", AB30=0, "No match") ->  | AE30: Match
T31: 0 | U31: No | Y31: =_xlfn.IFS(V31="", "", '1.1 Background'!$D$18=V31, 1, '1.1 Background'!$D$18<>V31, 0) ->  | Z31: =_xlfn.IFS(W31="", "", '1.1 Background'!$D$21=W31, 1, '1.1 Background'!$D$21<>W31, 0) ->  | AA31: =_xlfn.IFS(X31="", "", '1.1 Background'!$D$22=X31, 1, '1.1 Background'!$D$22<>X31, 0) ->  | AC31: =_xlfn.IFS(AB31="", "", AB31=3, "Strong match", AB31=2, "Ok match", AB31=1, "Ok match", AB31=0, "No match") ->  | AE31: Match
T32: 0 | U32: No | Y32: =_xlfn.IFS(V32="", "", '1.1 Background'!$D$18=V32, 1, '1.1 Background'!$D$18<>V32, 0) ->  | Z32: =_xlfn.IFS(W32="", "", '1.1 Background'!$D$21=W32, 1, '1.1 Background'!$D$21<>W32, 0) ->  | AA32: =_xlfn.IFS(X32="", "", '1.1 Background'!$D$22=X32, 1, '1.1 Background'!$D$22<>X32, 0) ->  | AC32: =_xlfn.IFS(AB32="", "", AB32=3, "Strong match", AB32=2, "Ok match", AB32=1, "Ok match", AB32=0, "No match") ->  | AE32: Match
T33: 0 | U33: No | Y33: =_xlfn.IFS(V33="", "", '1.1 Background'!$D$18=V33, 1, '1.1 Background'!$D$18<>V33, 0) ->  | Z33: =_xlfn.IFS(W33="", "", '1.1 Background'!$D$21=W33, 1, '1.1 Background'!$D$21<>W33, 0) ->  | AA33: =_xlfn.IFS(X33="", "", '1.1 Background'!$D$22=X33, 1, '1.1 Background'!$D$22<>X33, 0) ->  | AC33: =_xlfn.IFS(AB33="", "", AB33=3, "Strong match", AB33=2, "Ok match", AB33=1, "Ok match", AB33=0, "No match") ->  | AE33: Match
T34: 0 | U34: No | Y34: =_xlfn.IFS(V34="", "", '1.1 Background'!$D$18=V34, 1, '1.1 Background'!$D$18<>V34, 0) ->  | Z34: =_xlfn.IFS(W34="", "", '1.1 Background'!$D$21=W34, 1, '1.1 Background'!$D$21<>W34, 0) ->  | AA34: =_xlfn.IFS(X34="", "", '1.1 Background'!$D$22=X34, 1, '1.1 Background'!$D$22<>X34, 0) ->  | AC34: =_xlfn.IFS(AB34="", "", AB34=3, "Strong match", AB34=2, "Ok match", AB34=1, "Ok match", AB34=0, "No match") ->  | AE34: Match
T35: 0 | U35: No | Y35: =_xlfn.IFS(V35="", "", '1.1 Background'!$D$18=V35, 1, '1.1 Background'!$D$18<>V35, 0) ->  | Z35: =_xlfn.IFS(W35="", "", '1.1 Background'!$D$21=W35, 1, '1.1 Background'!$D$21<>W35, 0) ->  | AA35: =_xlfn.IFS(X35="", "", '1.1 Background'!$D$22=X35, 1, '1.1 Background'!$D$22<>X35, 0) ->  | AC35: =_xlfn.IFS(AB35="", "", AB35=3, "Strong match", AB35=2, "Ok match", AB35=1, "Ok match", AB35=0, "No match") ->  | AE35: Match
T36: 0 | U36: No | Y36: =_xlfn.IFS(V36="", "", '1.1 Background'!$D$18=V36, 1, '1.1 Background'!$D$18<>V36, 0) ->  | Z36: =_xlfn.IFS(W36="", "", '1.1 Background'!$D$21=W36, 1, '1.1 Background'!$D$21<>W36, 0) ->  | AA36: =_xlfn.IFS(X36="", "", '1.1 Background'!$D$22=X36, 1, '1.1 Background'!$D$22<>X36, 0) ->  | AC36: =_xlfn.IFS(AB36="", "", AB36=3, "Strong match", AB36=2, "Ok match", AB36=1, "Ok match", AB36=0, "No match") ->  | AE36: Match
T37: 0 | U37: No | Y37: =_xlfn.IFS(V37="", "", '1.1 Background'!$D$18=V37, 1, '1.1 Background'!$D$18<>V37, 0) ->  | Z37: =_xlfn.IFS(W37="", "", '1.1 Background'!$D$21=W37, 1, '1.1 Background'!$D$21<>W37, 0) ->  | AA37: =_xlfn.IFS(X37="", "", '1.1 Background'!$D$22=X37, 1, '1.1 Background'!$D$22<>X37, 0) ->  | AC37: =_xlfn.IFS(AB37="", "", AB37=3, "Strong match", AB37=2, "Ok match", AB37=1, "Ok match", AB37=0, "No match") ->  | AE37: Match
T38: 0 | U38: No | Y38: =_xlfn.IFS(V38="", "", '1.1 Background'!$D$18=V38, 1, '1.1 Background'!$D$18<>V38, 0) ->  | Z38: =_xlfn.IFS(W38="", "", '1.1 Background'!$D$21=W38, 1, '1.1 Background'!$D$21<>W38, 0) ->  | AA38: =_xlfn.IFS(X38="", "", '1.1 Background'!$D$22=X38, 1, '1.1 Background'!$D$22<>X38, 0) ->  | AC38: =_xlfn.IFS(AB38="", "", AB38=3, "Strong match", AB38=2, "Ok match", AB38=1, "Ok match", AB38=0, "No match") ->  | AE38: Match
T39: 0 | U39: No | Y39: =_xlfn.IFS(V39="", "", '1.1 Background'!$D$18=V39, 1, '1.1 Background'!$D$18<>V39, 0) ->  | Z39: =_xlfn.IFS(W39="", "", '1.1 Background'!$D$21=W39, 1, '1.1 Background'!$D$21<>W39, 0) ->  | AA39: =_xlfn.IFS(X39="", "", '1.1 Background'!$D$22=X39, 1, '1.1 Background'!$D$22<>X39, 0) ->  | AC39: =_xlfn.IFS(AB39="", "", AB39=3, "Strong match", AB39=2, "Ok match", AB39=1, "Ok match", AB39=0, "No match") ->  | AE39: Match
T40: 0 | U40: No | Y40: =_xlfn.IFS(V40="", "", '1.1 Background'!$D$18=V40, 1, '1.1 Background'!$D$18<>V40, 0) ->  | Z40: =_xlfn.IFS(W40="", "", '1.1 Background'!$D$21=W40, 1, '1.1 Background'!$D$21<>W40, 0) ->  | AA40: =_xlfn.IFS(X40="", "", '1.1 Background'!$D$22=X40, 1, '1.1 Background'!$D$22<>X40, 0) ->  | AC40: =_xlfn.IFS(AB40="", "", AB40=3, "Strong match", AB40=2, "Ok match", AB40=1, "Ok match", AB40=0, "No match") ->  | AE40: Match
T41: 0 | U41: No | Y41: =_xlfn.IFS(V41="", "", '1.1 Background'!$D$18=V41, 1, '1.1 Background'!$D$18<>V41, 0) ->  | Z41: =_xlfn.IFS(W41="", "", '1.1 Background'!$D$21=W41, 1, '1.1 Background'!$D$21<>W41, 0) ->  | AA41: =_xlfn.IFS(X41="", "", '1.1 Background'!$D$22=X41, 1, '1.1 Background'!$D$22<>X41, 0) ->  | AC41: =_xlfn.IFS(AB41="", "", AB41=3, "Strong match", AB41=2, "Ok match", AB41=1, "Ok match", AB41=0, "No match") ->  | AE41: Match
T42: 0 | U42: No | Y42: =_xlfn.IFS(V42="", "", '1.1 Background'!$D$18=V42, 1, '1.1 Background'!$D$18<>V42, 0) ->  | Z42: =_xlfn.IFS(W42="", "", '1.1 Background'!$D$21=W42, 1, '1.1 Background'!$D$21<>W42, 0) ->  | AA42: =_xlfn.IFS(X42="", "", '1.1 Background'!$D$22=X42, 1, '1.1 Background'!$D$22<>X42, 0) ->  | AC42: =_xlfn.IFS(AB42="", "", AB42=3, "Strong match", AB42=2, "Ok match", AB42=1, "Ok match", AB42=0, "No match") ->  | AE42: Match
T43: 0 | U43: No | Y43: =_xlfn.IFS(V43="", "", '1.1 Background'!$D$18=V43, 1, '1.1 Background'!$D$18<>V43, 0) ->  | Z43: =_xlfn.IFS(W43="", "", '1.1 Background'!$D$21=W43, 1, '1.1 Background'!$D$21<>W43, 0) ->  | AA43: =_xlfn.IFS(X43="", "", '1.1 Background'!$D$22=X43, 1, '1.1 Background'!$D$22<>X43, 0) ->  | AC43: =_xlfn.IFS(AB43="", "", AB43=3, "Strong match", AB43=2, "Ok match", AB43=1, "Ok match", AB43=0, "No match") ->  | AE43: Match
T44: 0 | U44: No | Y44: =_xlfn.IFS(V44="", "", '1.1 Background'!$D$18=V44, 1, '1.1 Background'!$D$18<>V44, 0) ->  | Z44: =_xlfn.IFS(W44="", "", '1.1 Background'!$D$21=W44, 1, '1.1 Background'!$D$21<>W44, 0) ->  | AA44: =_xlfn.IFS(X44="", "", '1.1 Background'!$D$22=X44, 1, '1.1 Background'!$D$22<>X44, 0) ->  | AC44: =_xlfn.IFS(AB44="", "", AB44=3, "Strong match", AB44=2, "Ok match", AB44=1, "Ok match", AB44=0, "No match") ->  | AE44: Match
T45: 0 | U45: No | Y45: =_xlfn.IFS(V45="", "", '1.1 Background'!$D$18=V45, 1, '1.1 Background'!$D$18<>V45, 0) ->  | Z45: =_xlfn.IFS(W45="", "", '1.1 Background'!$D$21=W45, 1, '1.1 Background'!$D$21<>W45, 0) ->  | AA45: =_xlfn.IFS(X45="", "", '1.1 Background'!$D$22=X45, 1, '1.1 Background'!$D$22<>X45, 0) ->  | AC45: =_xlfn.IFS(AB45="", "", AB45=3, "Strong match", AB45=2, "Ok match", AB45=1, "Ok match", AB45=0, "No match") ->  | AE45: Match
T46: 0 | U46: No | Y46: =_xlfn.IFS(V46="", "", '1.1 Background'!$D$18=V46, 1, '1.1 Background'!$D$18<>V46, 0) ->  | Z46: =_xlfn.IFS(W46="", "", '1.1 Background'!$D$21=W46, 1, '1.1 Background'!$D$21<>W46, 0) ->  | AA46: =_xlfn.IFS(X46="", "", '1.1 Background'!$D$22=X46, 1, '1.1 Background'!$D$22<>X46, 0) ->  | AC46: =_xlfn.IFS(AB46="", "", AB46=3, "Strong match", AB46=2, "Ok match", AB46=1, "Ok match", AB46=0, "No match") ->  | AE46: Match
T47: 0 | U47: No | Y47: =_xlfn.IFS(V47="", "", '1.1 Background'!$D$18=V47, 1, '1.1 Background'!$D$18<>V47, 0) ->  | Z47: =_xlfn.IFS(W47="", "", '1.1 Background'!$D$21=W47, 1, '1.1 Background'!$D$21<>W47, 0) ->  | AA47: =_xlfn.IFS(X47="", "", '1.1 Background'!$D$22=X47, 1, '1.1 Background'!$D$22<>X47, 0) ->  | AC47: =_xlfn.IFS(AB47="", "", AB47=3, "Strong match", AB47=2, "Ok match", AB47=1, "Ok match", AB47=0, "No match") ->  | AE47: Match
T48: 0 | U48: No | Y48: =_xlfn.IFS(V48="", "", '1.1 Background'!$D$18=V48, 1, '1.1 Background'!$D$18<>V48, 0) ->  | Z48: =_xlfn.IFS(W48="", "", '1.1 Background'!$D$21=W48, 1, '1.1 Background'!$D$21<>W48, 0) ->  | AA48: =_xlfn.IFS(X48="", "", '1.1 Background'!$D$22=X48, 1, '1.1 Background'!$D$22<>X48, 0) ->  | AC48: =_xlfn.IFS(AB48="", "", AB48=3, "Strong match", AB48=2, "Ok match", AB48=1, "Ok match", AB48=0, "No match") ->  | AE48: Match
T49: 0 | U49: No | Y49: =_xlfn.IFS(V49="", "", '1.1 Background'!$D$18=V49, 1, '1.1 Background'!$D$18<>V49, 0) ->  | Z49: =_xlfn.IFS(W49="", "", '1.1 Background'!$D$21=W49, 1, '1.1 Background'!$D$21<>W49, 0) ->  | AA49: =_xlfn.IFS(X49="", "", '1.1 Background'!$D$22=X49, 1, '1.1 Background'!$D$22<>X49, 0) ->  | AC49: =_xlfn.IFS(AB49="", "", AB49=3, "Strong match", AB49=2, "Ok match", AB49=1, "Ok match", AB49=0, "No match") ->  | AE49: Match
T50: 0 | U50: No | Y50: =_xlfn.IFS(V50="", "", '1.1 Background'!$D$18=V50, 1, '1.1 Background'!$D$18<>V50, 0) ->  | Z50: =_xlfn.IFS(W50="", "", '1.1 Background'!$D$21=W50, 1, '1.1 Background'!$D$21<>W50, 0) ->  | AA50: =_xlfn.IFS(X50="", "", '1.1 Background'!$D$22=X50, 1, '1.1 Background'!$D$22<>X50, 0) ->  | AC50: =_xlfn.IFS(AB50="", "", AB50=3, "Strong match", AB50=2, "Ok match", AB50=1, "Ok match", AB50=0, "No match") ->  | AE50: Match
T51: =IF(O51>=10,"Data 10 years or older",O51) -> 0 | U51: =IF(N51=M51, "No", "Yes") -> No | Y51: =_xlfn.IFS(V51="", "", '1.1 Background'!$D$18=V51, 1, '1.1 Background'!$D$18<>V51, 0) ->  | Z51: =_xlfn.IFS(W51="", "", '1.1 Background'!$D$21=W51, 1, '1.1 Background'!$D$21<>W51, 0) ->  | AA51: =_xlfn.IFS(X51="", "", '1.1 Background'!$D$22=X51, 1, '1.1 Background'!$D$22<>X51, 0) ->  | AB51: =IF(Y51="", "", (SUM(Y51:AA51))) ->  | AC51: =_xlfn.IFS(AB51="", "", AB51=3, "Strong match", AB51=2, "Ok match", AB51=1, "Ok match", AB51=0, "No match") ->  | AE51: Match
T52: 0 | U52: No | Y52: =_xlfn.IFS(V52="", "", '1.1 Background'!$D$18=V52, 1, '1.1 Background'!$D$18<>V52, 0) ->  | Z52: =_xlfn.IFS(W52="", "", '1.1 Background'!$D$21=W52, 1, '1.1 Background'!$D$21<>W52, 0) ->  | AA52: =_xlfn.IFS(X52="", "", '1.1 Background'!$D$22=X52, 1, '1.1 Background'!$D$22<>X52, 0) ->  | AC52: =_xlfn.IFS(AB52="", "", AB52=3, "Strong match", AB52=2, "Ok match", AB52=1, "Ok match", AB52=0, "No match") ->  | AE52: Match
T53: 0 | U53: No | Y53: =_xlfn.IFS(V53="", "", '1.1 Background'!$D$18=V53, 1, '1.1 Background'!$D$18<>V53, 0) ->  | Z53: =_xlfn.IFS(W53="", "", '1.1 Background'!$D$21=W53, 1, '1.1 Background'!$D$21<>W53, 0) ->  | AA53: =_xlfn.IFS(X53="", "", '1.1 Background'!$D$22=X53, 1, '1.1 Background'!$D$22<>X53, 0) ->  | AC53: =_xlfn.IFS(AB53="", "", AB53=3, "Strong match", AB53=2, "Ok match", AB53=1, "Ok match", AB53=0, "No match") ->  | AE53: Match
T54: 0 | U54: No | Y54: =_xlfn.IFS(V54="", "", '1.1 Background'!$D$18=V54, 1, '1.1 Background'!$D$18<>V54, 0) ->  | Z54: =_xlfn.IFS(W54="", "", '1.1 Background'!$D$21=W54, 1, '1.1 Background'!$D$21<>W54, 0) ->  | AA54: =_xlfn.IFS(X54="", "", '1.1 Background'!$D$22=X54, 1, '1.1 Background'!$D$22<>X54, 0) ->  | AC54: =_xlfn.IFS(AB54="", "", AB54=3, "Strong match", AB54=2, "Ok match", AB54=1, "Ok match", AB54=0, "No match") ->  | AE54: Match
T55: 0 | U55: No | Y55: =_xlfn.IFS(V55="", "", '1.1 Background'!$D$18=V55, 1, '1.1 Background'!$D$18<>V55, 0) ->  | Z55: =_xlfn.IFS(W55="", "", '1.1 Background'!$D$21=W55, 1, '1.1 Background'!$D$21<>W55, 0) ->  | AA55: =_xlfn.IFS(X55="", "", '1.1 Background'!$D$22=X55, 1, '1.1 Background'!$D$22<>X55, 0) ->  | AC55: =_xlfn.IFS(AB55="", "", AB55=3, "Strong match", AB55=2, "Ok match", AB55=1, "Ok match", AB55=0, "No match") ->  | AE55: Match
T56: 0 | U56: No | Y56: =_xlfn.IFS(V56="", "", '1.1 Background'!$D$18=V56, 1, '1.1 Background'!$D$18<>V56, 0) ->  | Z56: =_xlfn.IFS(W56="", "", '1.1 Background'!$D$21=W56, 1, '1.1 Background'!$D$21<>W56, 0) ->  | AA56: =_xlfn.IFS(X56="", "", '1.1 Background'!$D$22=X56, 1, '1.1 Background'!$D$22<>X56, 0) ->  | AC56: =_xlfn.IFS(AB56="", "", AB56=3, "Strong match", AB56=2, "Ok match", AB56=1, "Ok match", AB56=0, "No match") ->  | AE56: Match
T57: 0 | U57: No | Y57: =_xlfn.IFS(V57="", "", '1.1 Background'!$D$18=V57, 1, '1.1 Background'!$D$18<>V57, 0) ->  | Z57: =_xlfn.IFS(W57="", "", '1.1 Background'!$D$21=W57, 1, '1.1 Background'!$D$21<>W57, 0) ->  | AA57: =_xlfn.IFS(X57="", "", '1.1 Background'!$D$22=X57, 1, '1.1 Background'!$D$22<>X57, 0) ->  | AC57: =_xlfn.IFS(AB57="", "", AB57=3, "Strong match", AB57=2, "Ok match", AB57=1, "Ok match", AB57=0, "No match") ->  | AE57: Match
T58: 0 | U58: No | Y58: =_xlfn.IFS(V58="", "", '1.1 Background'!$D$18=V58, 1, '1.1 Background'!$D$18<>V58, 0) ->  | Z58: =_xlfn.IFS(W58="", "", '1.1 Background'!$D$21=W58, 1, '1.1 Background'!$D$21<>W58, 0) ->  | AA58: =_xlfn.IFS(X58="", "", '1.1 Background'!$D$22=X58, 1, '1.1 Background'!$D$22<>X58, 0) ->  | AC58: =_xlfn.IFS(AB58="", "", AB58=3, "Strong match", AB58=2, "Ok match", AB58=1, "Ok match", AB58=0, "No match") ->  | AE58: Match
T59: 0 | U59: No | Y59: =_xlfn.IFS(V59="", "", '1.1 Background'!$D$18=V59, 1, '1.1 Background'!$D$18<>V59, 0) ->  | Z59: =_xlfn.IFS(W59="", "", '1.1 Background'!$D$21=W59, 1, '1.1 Background'!$D$21<>W59, 0) ->  | AA59: =_xlfn.IFS(X59="", "", '1.1 Background'!$D$22=X59, 1, '1.1 Background'!$D$22<>X59, 0) ->  | AC59: =_xlfn.IFS(AB59="", "", AB59=3, "Strong match", AB59=2, "Ok match", AB59=1, "Ok match", AB59=0, "No match") ->  | AE59: Match
T60: 0 | U60: No | Y60: =_xlfn.IFS(V60="", "", '1.1 Background'!$D$18=V60, 1, '1.1 Background'!$D$18<>V60, 0) ->  | Z60: =_xlfn.IFS(W60="", "", '1.1 Background'!$D$21=W60, 1, '1.1 Background'!$D$21<>W60, 0) ->  | AA60: =_xlfn.IFS(X60="", "", '1.1 Background'!$D$22=X60, 1, '1.1 Background'!$D$22<>X60, 0) ->  | AC60: =_xlfn.IFS(AB60="", "", AB60=3, "Strong match", AB60=2, "Ok match", AB60=1, "Ok match", AB60=0, "No match") ->  | AE60: Match
T61: 0 | U61: No | Y61: =_xlfn.IFS(V61="", "", '1.1 Background'!$D$18=V61, 1, '1.1 Background'!$D$18<>V61, 0) ->  | Z61: =_xlfn.IFS(W61="", "", '1.1 Background'!$D$21=W61, 1, '1.1 Background'!$D$21<>W61, 0) ->  | AA61: =_xlfn.IFS(X61="", "", '1.1 Background'!$D$22=X61, 1, '1.1 Background'!$D$22<>X61, 0) ->  | AC61: =_xlfn.IFS(AB61="", "", AB61=3, "Strong match", AB61=2, "Ok match", AB61=1, "Ok match", AB61=0, "No match") ->  | AE61: Match
T62: 0 | U62: No | Y62: =_xlfn.IFS(V62="", "", '1.1 Background'!$D$18=V62, 1, '1.1 Background'!$D$18<>V62, 0) ->  | Z62: =_xlfn.IFS(W62="", "", '1.1 Background'!$D$21=W62, 1, '1.1 Background'!$D$21<>W62, 0) ->  | AA62: =_xlfn.IFS(X62="", "", '1.1 Background'!$D$22=X62, 1, '1.1 Background'!$D$22<>X62, 0) ->  | AC62: =_xlfn.IFS(AB62="", "", AB62=3, "Strong match", AB62=2, "Ok match", AB62=1, "Ok match", AB62=0, "No match") ->  | AE62: Match
T63: 0 | U63: No | Y63: =_xlfn.IFS(V63="", "", '1.1 Background'!$D$18=V63, 1, '1.1 Background'!$D$18<>V63, 0) ->  | Z63: =_xlfn.IFS(W63="", "", '1.1 Background'!$D$21=W63, 1, '1.1 Background'!$D$21<>W63, 0) ->  | AA63: =_xlfn.IFS(X63="", "", '1.1 Background'!$D$22=X63, 1, '1.1 Background'!$D$22<>X63, 0) ->  | AC63: =_xlfn.IFS(AB63="", "", AB63=3, "Strong match", AB63=2, "Ok match", AB63=1, "Ok match", AB63=0, "No match") ->  | AE63: Match
T64: 0 | U64: No | Y64: =_xlfn.IFS(V64="", "", '1.1 Background'!$D$18=V64, 1, '1.1 Background'!$D$18<>V64, 0) ->  | Z64: =_xlfn.IFS(W64="", "", '1.1 Background'!$D$21=W64, 1, '1.1 Background'!$D$21<>W64, 0) ->  | AA64: =_xlfn.IFS(X64="", "", '1.1 Background'!$D$22=X64, 1, '1.1 Background'!$D$22<>X64, 0) ->  | AC64: =_xlfn.IFS(AB64="", "", AB64=3, "Strong match", AB64=2, "Ok match", AB64=1, "Ok match", AB64=0, "No match") ->  | AE64: Match
T65: 0 | U65: No | Y65: =_xlfn.IFS(V65="", "", '1.1 Background'!$D$18=V65, 1, '1.1 Background'!$D$18<>V65, 0) ->  | Z65: =_xlfn.IFS(W65="", "", '1.1 Background'!$D$21=W65, 1, '1.1 Background'!$D$21<>W65, 0) ->  | AA65: =_xlfn.IFS(X65="", "", '1.1 Background'!$D$22=X65, 1, '1.1 Background'!$D$22<>X65, 0) ->  | AC65: =_xlfn.IFS(AB65="", "", AB65=3, "Strong match", AB65=2, "Ok match", AB65=1, "Ok match", AB65=0, "No match") ->  | AE65: Match
T66: 0 | U66: No | Y66: =_xlfn.IFS(V66="", "", '1.1 Background'!$D$18=V66, 1, '1.1 Background'!$D$18<>V66, 0) ->  | Z66: =_xlfn.IFS(W66="", "", '1.1 Background'!$D$21=W66, 1, '1.1 Background'!$D$21<>W66, 0) ->  | AA66: =_xlfn.IFS(X66="", "", '1.1 Background'!$D$22=X66, 1, '1.1 Background'!$D$22<>X66, 0) ->  | AC66: =_xlfn.IFS(AB66="", "", AB66=3, "Strong match", AB66=2, "Ok match", AB66=1, "Ok match", AB66=0, "No match") ->  | AE66: Match
T67: 0 | U67: No | Y67: =_xlfn.IFS(V67="", "", '1.1 Background'!$D$18=V67, 1, '1.1 Background'!$D$18<>V67, 0) ->  | Z67: =_xlfn.IFS(W67="", "", '1.1 Background'!$D$21=W67, 1, '1.1 Background'!$D$21<>W67, 0) ->  | AA67: =_xlfn.IFS(X67="", "", '1.1 Background'!$D$22=X67, 1, '1.1 Background'!$D$22<>X67, 0) ->  | AC67: =_xlfn.IFS(AB67="", "", AB67=3, "Strong match", AB67=2, "Ok match", AB67=1, "Ok match", AB67=0, "No match") ->  | AE67: Match
T68: 0 | U68: No | Y68: =_xlfn.IFS(V68="", "", '1.1 Background'!$D$18=V68, 1, '1.1 Background'!$D$18<>V68, 0) ->  | Z68: =_xlfn.IFS(W68="", "", '1.1 Background'!$D$21=W68, 1, '1.1 Background'!$D$21<>W68, 0) ->  | AA68: =_xlfn.IFS(X68="", "", '1.1 Background'!$D$22=X68, 1, '1.1 Background'!$D$22<>X68, 0) ->  | AC68: =_xlfn.IFS(AB68="", "", AB68=3, "Strong match", AB68=2, "Ok match", AB68=1, "Ok match", AB68=0, "No match") ->  | AE68: Match
T69: 0 | U69: No | Y69: =_xlfn.IFS(V69="", "", '1.1 Background'!$D$18=V69, 1, '1.1 Background'!$D$18<>V69, 0) ->  | Z69: =_xlfn.IFS(W69="", "", '1.1 Background'!$D$21=W69, 1, '1.1 Background'!$D$21<>W69, 0) ->  | AA69: =_xlfn.IFS(X69="", "", '1.1 Background'!$D$22=X69, 1, '1.1 Background'!$D$22<>X69, 0) ->  | AC69: =_xlfn.IFS(AB69="", "", AB69=3, "Strong match", AB69=2, "Ok match", AB69=1, "Ok match", AB69=0, "No match") ->  | AE69: Match
T70: 0 | U70: No | Y70: =_xlfn.IFS(V70="", "", '1.1 Background'!$D$18=V70, 1, '1.1 Background'!$D$18<>V70, 0) ->  | Z70: =_xlfn.IFS(W70="", "", '1.1 Background'!$D$21=W70, 1, '1.1 Background'!$D$21<>W70, 0) ->  | AA70: =_xlfn.IFS(X70="", "", '1.1 Background'!$D$22=X70, 1, '1.1 Background'!$D$22<>X70, 0) ->  | AC70: =_xlfn.IFS(AB70="", "", AB70=3, "Strong match", AB70=2, "Ok match", AB70=1, "Ok match", AB70=0, "No match") ->  | AE70: Match
T71: 0 | U71: No | Y71: =_xlfn.IFS(V71="", "", '1.1 Background'!$D$18=V71, 1, '1.1 Background'!$D$18<>V71, 0) ->  | Z71: =_xlfn.IFS(W71="", "", '1.1 Background'!$D$21=W71, 1, '1.1 Background'!$D$21<>W71, 0) ->  | AA71: =_xlfn.IFS(X71="", "", '1.1 Background'!$D$22=X71, 1, '1.1 Background'!$D$22<>X71, 0) ->  | AC71: =_xlfn.IFS(AB71="", "", AB71=3, "Strong match", AB71=2, "Ok match", AB71=1, "Ok match", AB71=0, "No match") ->  | AE71: Match
T72: 0 | U72: No | Y72: =_xlfn.IFS(V72="", "", '1.1 Background'!$D$18=V72, 1, '1.1 Background'!$D$18<>V72, 0) ->  | Z72: =_xlfn.IFS(W72="", "", '1.1 Background'!$D$21=W72, 1, '1.1 Background'!$D$21<>W72, 0) ->  | AA72: =_xlfn.IFS(X72="", "", '1.1 Background'!$D$22=X72, 1, '1.1 Background'!$D$22<>X72, 0) ->  | AC72: =_xlfn.IFS(AB72="", "", AB72=3, "Strong match", AB72=2, "Ok match", AB72=1, "Ok match", AB72=0, "No match") ->  | AE72: Match
T73: 0 | U73: No | Y73: =_xlfn.IFS(V73="", "", '1.1 Background'!$D$18=V73, 1, '1.1 Background'!$D$18<>V73, 0) ->  | Z73: =_xlfn.IFS(W73="", "", '1.1 Background'!$D$21=W73, 1, '1.1 Background'!$D$21<>W73, 0) ->  | AA73: =_xlfn.IFS(X73="", "", '1.1 Background'!$D$22=X73, 1, '1.1 Background'!$D$22<>X73, 0) ->  | AC73: =_xlfn.IFS(AB73="", "", AB73=3, "Strong match", AB73=2, "Ok match", AB73=1, "Ok match", AB73=0, "No match") ->  | AE73: Match
T74: 0 | U74: No | Y74: =_xlfn.IFS(V74="", "", '1.1 Background'!$D$18=V74, 1, '1.1 Background'!$D$18<>V74, 0) ->  | Z74: =_xlfn.IFS(W74="", "", '1.1 Background'!$D$21=W74, 1, '1.1 Background'!$D$21<>W74, 0) ->  | AA74: =_xlfn.IFS(X74="", "", '1.1 Background'!$D$22=X74, 1, '1.1 Background'!$D$22<>X74, 0) ->  | AC74: =_xlfn.IFS(AB74="", "", AB74=3, "Strong match", AB74=2, "Ok match", AB74=1, "Ok match", AB74=0, "No match") ->  | AE74: Match
T75: 0 | U75: No | Y75: =_xlfn.IFS(V75="", "", '1.1 Background'!$D$18=V75, 1, '1.1 Background'!$D$18<>V75, 0) ->  | Z75: =_xlfn.IFS(W75="", "", '1.1 Background'!$D$21=W75, 1, '1.1 Background'!$D$21<>W75, 0) ->  | AA75: =_xlfn.IFS(X75="", "", '1.1 Background'!$D$22=X75, 1, '1.1 Background'!$D$22<>X75, 0) ->  | AC75: =_xlfn.IFS(AB75="", "", AB75=3, "Strong match", AB75=2, "Ok match", AB75=1, "Ok match", AB75=0, "No match") ->  | AE75: Match
T76: 0 | U76: No | Y76: =_xlfn.IFS(V76="", "", '1.1 Background'!$D$18=V76, 1, '1.1 Background'!$D$18<>V76, 0) ->  | Z76: =_xlfn.IFS(W76="", "", '1.1 Background'!$D$21=W76, 1, '1.1 Background'!$D$21<>W76, 0) ->  | AA76: =_xlfn.IFS(X76="", "", '1.1 Background'!$D$22=X76, 1, '1.1 Background'!$D$22<>X76, 0) ->  | AC76: =_xlfn.IFS(AB76="", "", AB76=3, "Strong match", AB76=2, "Ok match", AB76=1, "Ok match", AB76=0, "No match") ->  | AE76: Match
T77: 0 | U77: No | Y77: =_xlfn.IFS(V77="", "", '1.1 Background'!$D$18=V77, 1, '1.1 Background'!$D$18<>V77, 0) ->  | Z77: =_xlfn.IFS(W77="", "", '1.1 Background'!$D$21=W77, 1, '1.1 Background'!$D$21<>W77, 0) ->  | AA77: =_xlfn.IFS(X77="", "", '1.1 Background'!$D$22=X77, 1, '1.1 Background'!$D$22<>X77, 0) ->  | AC77: =_xlfn.IFS(AB77="", "", AB77=3, "Strong match", AB77=2, "Ok match", AB77=1, "Ok match", AB77=0, "No match") ->  | AE77: Match
T78: 0 | U78: No | Y78: =_xlfn.IFS(V78="", "", '1.1 Background'!$D$18=V78, 1, '1.1 Background'!$D$18<>V78, 0) ->  | Z78: =_xlfn.IFS(W78="", "", '1.1 Background'!$D$21=W78, 1, '1.1 Background'!$D$21<>W78, 0) ->  | AA78: =_xlfn.IFS(X78="", "", '1.1 Background'!$D$22=X78, 1, '1.1 Background'!$D$22<>X78, 0) ->  | AC78: =_xlfn.IFS(AB78="", "", AB78=3, "Strong match", AB78=2, "Ok match", AB78=1, "Ok match", AB78=0, "No match") ->  | AE78: Match
T79: 0 | U79: No | Y79: =_xlfn.IFS(V79="", "", '1.1 Background'!$D$18=V79, 1, '1.1 Background'!$D$18<>V79, 0) ->  | Z79: =_xlfn.IFS(W79="", "", '1.1 Background'!$D$21=W79, 1, '1.1 Background'!$D$21<>W79, 0) ->  | AA79: =_xlfn.IFS(X79="", "", '1.1 Background'!$D$22=X79, 1, '1.1 Background'!$D$22<>X79, 0) ->  | AC79: =_xlfn.IFS(AB79="", "", AB79=3, "Strong match", AB79=2, "Ok match", AB79=1, "Ok match", AB79=0, "No match") ->  | AE79: Match
T80: 0 | U80: No | Y80: =_xlfn.IFS(V80="", "", '1.1 Background'!$D$18=V80, 1, '1.1 Background'!$D$18<>V80, 0) ->  | Z80: =_xlfn.IFS(W80="", "", '1.1 Background'!$D$21=W80, 1, '1.1 Background'!$D$21<>W80, 0) ->  | AA80: =_xlfn.IFS(X80="", "", '1.1 Background'!$D$22=X80, 1, '1.1 Background'!$D$22<>X80, 0) ->  | AC80: =_xlfn.IFS(AB80="", "", AB80=3, "Strong match", AB80=2, "Ok match", AB80=1, "Ok match", AB80=0, "No match") ->  | AE80: Match
T81: 0 | U81: No | Y81: =_xlfn.IFS(V81="", "", '1.1 Background'!$D$18=V81, 1, '1.1 Background'!$D$18<>V81, 0) ->  | Z81: =_xlfn.IFS(W81="", "", '1.1 Background'!$D$21=W81, 1, '1.1 Background'!$D$21<>W81, 0) ->  | AA81: =_xlfn.IFS(X81="", "", '1.1 Background'!$D$22=X81, 1, '1.1 Background'!$D$22<>X81, 0) ->  | AC81: =_xlfn.IFS(AB81="", "", AB81=3, "Strong match", AB81=2, "Ok match", AB81=1, "Ok match", AB81=0, "No match") ->  | AE81: Match
T82: 0 | U82: No | Y82: =_xlfn.IFS(V82="", "", '1.1 Background'!$D$18=V82, 1, '1.1 Background'!$D$18<>V82, 0) ->  | Z82: =_xlfn.IFS(W82="", "", '1.1 Background'!$D$21=W82, 1, '1.1 Background'!$D$21<>W82, 0) ->  | AA82: =_xlfn.IFS(X82="", "", '1.1 Background'!$D$22=X82, 1, '1.1 Background'!$D$22<>X82, 0) ->  | AC82: =_xlfn.IFS(AB82="", "", AB82=3, "Strong match", AB82=2, "Ok match", AB82=1, "Ok match", AB82=0, "No match") ->  | AE82: Match
T83: 0 | U83: No | Y83: =_xlfn.IFS(V83="", "", '1.1 Background'!$D$18=V83, 1, '1.1 Background'!$D$18<>V83, 0) ->  | Z83: =_xlfn.IFS(W83="", "", '1.1 Background'!$D$21=W83, 1, '1.1 Background'!$D$21<>W83, 0) ->  | AA83: =_xlfn.IFS(X83="", "", '1.1 Background'!$D$22=X83, 1, '1.1 Background'!$D$22<>X83, 0) ->  | AC83: =_xlfn.IFS(AB83="", "", AB83=3, "Strong match", AB83=2, "Ok match", AB83=1, "Ok match", AB83=0, "No match") ->  | AE83: Match
T84: 0 | U84: No | Y84: =_xlfn.IFS(V84="", "", '1.1 Background'!$D$18=V84, 1, '1.1 Background'!$D$18<>V84, 0) ->  | Z84: =_xlfn.IFS(W84="", "", '1.1 Background'!$D$21=W84, 1, '1.1 Background'!$D$21<>W84, 0) ->  | AA84: =_xlfn.IFS(X84="", "", '1.1 Background'!$D$22=X84, 1, '1.1 Background'!$D$22<>X84, 0) ->  | AC84: =_xlfn.IFS(AB84="", "", AB84=3, "Strong match", AB84=2, "Ok match", AB84=1, "Ok match", AB84=0, "No match") ->  | AE84: Match
T85: 0 | U85: No | Y85: =_xlfn.IFS(V85="", "", '1.1 Background'!$D$18=V85, 1, '1.1 Background'!$D$18<>V85, 0) ->  | Z85: =_xlfn.IFS(W85="", "", '1.1 Background'!$D$21=W85, 1, '1.1 Background'!$D$21<>W85, 0) ->  | AA85: =_xlfn.IFS(X85="", "", '1.1 Background'!$D$22=X85, 1, '1.1 Background'!$D$22<>X85, 0) ->  | AC85: =_xlfn.IFS(AB85="", "", AB85=3, "Strong match", AB85=2, "Ok match", AB85=1, "Ok match", AB85=0, "No match") ->  | AE85: Match
T86: 0 | U86: No | Y86: =_xlfn.IFS(V86="", "", '1.1 Background'!$D$18=V86, 1, '1.1 Background'!$D$18<>V86, 0) ->  | Z86: =_xlfn.IFS(W86="", "", '1.1 Background'!$D$21=W86, 1, '1.1 Background'!$D$21<>W86, 0) ->  | AA86: =_xlfn.IFS(X86="", "", '1.1 Background'!$D$22=X86, 1, '1.1 Background'!$D$22<>X86, 0) ->  | AC86: =_xlfn.IFS(AB86="", "", AB86=3, "Strong match", AB86=2, "Ok match", AB86=1, "Ok match", AB86=0, "No match") ->  | AE86: Match
T87: 0 | U87: No | Y87: =_xlfn.IFS(V87="", "", '1.1 Background'!$D$18=V87, 1, '1.1 Background'!$D$18<>V87, 0) ->  | Z87: =_xlfn.IFS(W87="", "", '1.1 Background'!$D$21=W87, 1, '1.1 Background'!$D$21<>W87, 0) ->  | AA87: =_xlfn.IFS(X87="", "", '1.1 Background'!$D$22=X87, 1, '1.1 Background'!$D$22<>X87, 0) ->  | AC87: =_xlfn.IFS(AB87="", "", AB87=3, "Strong match", AB87=2, "Ok match", AB87=1, "Ok match", AB87=0, "No match") ->  | AE87: Match
T88: 0 | U88: No | Y88: =_xlfn.IFS(V88="", "", '1.1 Background'!$D$18=V88, 1, '1.1 Background'!$D$18<>V88, 0) ->  | Z88: =_xlfn.IFS(W88="", "", '1.1 Background'!$D$21=W88, 1, '1.1 Background'!$D$21<>W88, 0) ->  | AA88: =_xlfn.IFS(X88="", "", '1.1 Background'!$D$22=X88, 1, '1.1 Background'!$D$22<>X88, 0) ->  | AC88: =_xlfn.IFS(AB88="", "", AB88=3, "Strong match", AB88=2, "Ok match", AB88=1, "Ok match", AB88=0, "No match") ->  | AE88: Match
T89: 0 | U89: No | Y89: =_xlfn.IFS(V89="", "", '1.1 Background'!$D$18=V89, 1, '1.1 Background'!$D$18<>V89, 0) ->  | Z89: =_xlfn.IFS(W89="", "", '1.1 Background'!$D$21=W89, 1, '1.1 Background'!$D$21<>W89, 0) ->  | AA89: =_xlfn.IFS(X89="", "", '1.1 Background'!$D$22=X89, 1, '1.1 Background'!$D$22<>X89, 0) ->  | AC89: =_xlfn.IFS(AB89="", "", AB89=3, "Strong match", AB89=2, "Ok match", AB89=1, "Ok match", AB89=0, "No match") ->  | AE89: Match
T90: 0 | U90: No | Y90: =_xlfn.IFS(V90="", "", '1.1 Background'!$D$18=V90, 1, '1.1 Background'!$D$18<>V90, 0) ->  | Z90: =_xlfn.IFS(W90="", "", '1.1 Background'!$D$21=W90, 1, '1.1 Background'!$D$21<>W90, 0) ->  | AA90: =_xlfn.IFS(X90="", "", '1.1 Background'!$D$22=X90, 1, '1.1 Background'!$D$22<>X90, 0) ->  | AC90: =_xlfn.IFS(AB90="", "", AB90=3, "Strong match", AB90=2, "Ok match", AB90=1, "Ok match", AB90=0, "No match") ->  | AE90: Match
T91: 0 | U91: =IF(N91=M91, "No", "Yes") -> No | Y91: =_xlfn.IFS(V91="", "", '1.1 Background'!$D$18=V91, 1, '1.1 Background'!$D$18<>V91, 0) ->  | Z91: =_xlfn.IFS(W91="", "", '1.1 Background'!$D$21=W91, 1, '1.1 Background'!$D$21<>W91, 0) ->  | AA91: =_xlfn.IFS(X91="", "", '1.1 Background'!$D$22=X91, 1, '1.1 Background'!$D$22<>X91, 0) ->  | AC91: =_xlfn.IFS(AB91="", "", AB91=3, "Strong match", AB91=2, "Ok match", AB91=1, "Ok match", AB91=0, "No match") ->  | AE91: Match
T92: 0 | U92: No | Y92: =_xlfn.IFS(V92="", "", '1.1 Background'!$D$18=V92, 1, '1.1 Background'!$D$18<>V92, 0) ->  | Z92: =_xlfn.IFS(W92="", "", '1.1 Background'!$D$21=W92, 1, '1.1 Background'!$D$21<>W92, 0) ->  | AA92: =_xlfn.IFS(X92="", "", '1.1 Background'!$D$22=X92, 1, '1.1 Background'!$D$22<>X92, 0) ->  | AC92: =_xlfn.IFS(AB92="", "", AB92=3, "Strong match", AB92=2, "Ok match", AB92=1, "Ok match", AB92=0, "No match") ->  | AE92: Match
T93: 0 | U93: No | Y93: =_xlfn.IFS(V93="", "", '1.1 Background'!$D$18=V93, 1, '1.1 Background'!$D$18<>V93, 0) ->  | Z93: =_xlfn.IFS(W93="", "", '1.1 Background'!$D$21=W93, 1, '1.1 Background'!$D$21<>W93, 0) ->  | AA93: =_xlfn.IFS(X93="", "", '1.1 Background'!$D$22=X93, 1, '1.1 Background'!$D$22<>X93, 0) ->  | AC93: =_xlfn.IFS(AB93="", "", AB93=3, "Strong match", AB93=2, "Ok match", AB93=1, "Ok match", AB93=0, "No match") ->  | AE93: Match
T94: 0 | U94: No | Y94: =_xlfn.IFS(V94="", "", '1.1 Background'!$D$18=V94, 1, '1.1 Background'!$D$18<>V94, 0) ->  | Z94: =_xlfn.IFS(W94="", "", '1.1 Background'!$D$21=W94, 1, '1.1 Background'!$D$21<>W94, 0) ->  | AA94: =_xlfn.IFS(X94="", "", '1.1 Background'!$D$22=X94, 1, '1.1 Background'!$D$22<>X94, 0) ->  | AC94: =_xlfn.IFS(AB94="", "", AB94=3, "Strong match", AB94=2, "Ok match", AB94=1, "Ok match", AB94=0, "No match") ->  | AE94: Match
T95: 0 | U95: No | AC95: =_xlfn.IFS(AB95="", "", AB95=3, "Strong match", AB95=2, "Ok match", AB95=1, "Ok match", AB95=0, "No match") ->  | AE95: Match

Sheet 2.2 Adaptation Calcs
B3: CHAPTER 7: COLLECTING AND ADAPTING UNIT COSTS
B5: The adaptation approach
B9: Adaptation Calculations for Previously Estimated Unit Costs
B10: This is a template that should be copied and pasted, so that there is recipe for each intervention that is being costed by adapting previous estimates
G12: INTEGRATED HEALTH TOOL INPUTS, if using IHT
A13: Intervention Master List Line number | B13: Intervention Name | C13: Description | E13: Intervention Output Unit | F13: Unit Cost | G13: staff time per visit in minutes | H13: nr outpatient visits | I13: cost of (medical) supplies | J13: nr inpatient days
A14: 1 | B14: ='1.4 Interventions'!C19 -> Combination prevention package targeting Adolescent girls and young women - 15 -19 years, in schools - youth club model | C14: Implement age-appropriate life skills, behaviour change and empowerment activities through the peer education and youth club model, focusing on girls in and out of primary schools (8-14 Years). 1 club per school. 25 participants be club. This is regarded as a "high norms & standards" youth club for priority districts. Above site management and overhead costs from a service provider perspective only | F14: =F28 -> 0
B15: Adaptation Step | C15: Adaptation Parameters | E15: Calculation Note | F15: Calculation Result
C16: Param Name | D16: Value
E28: Adapted Cost per Unit of Intervention Output
D31: 2017 ZAR Value | F31: 2025 ZAR value | G31: USD value
A33: 2 | B33: ='2.1 Literature Review'!C12 -> VMMC | C33: ='2.1 Literature Review'!K12 -> Cost per male circumcision | D33: ='2.1 Literature Review'!J12 -> 1504.014002 | E33: adjust for inflation from 2017 to 2025 | F33: =D33*((1+Inflation)^(2025-2017)) -> 1504.014002 | G33: =F33/XRZar -> 
A34: 4 | B34: ='2.1 Literature Review'!C13 -> Health system strengthening | C34: ='2.1 Literature Review'!K13 -> Youth friendly PHC service | D34: ='2.1 Literature Review'!J13 -> 17760153.5 | E34: adjust for inflation from 2017 to 2025 | F34: 17760153.5
A35: 9 | B35: ='2.1 Literature Review'!C14 -> Health system strengthening | C35: ='2.1 Literature Review'!K14 -> Annual programme management cost per social protection departments | D35: ='2.1 Literature Review'!J14 -> 690911879 | E35: adjust for inflation from 2017 to 2025 | F35: 690911879
B36: ='2.1 Literature Review'!C15 -> BCC | C36: ='2.1 Literature Review'!K15 -> Cost per pp reached by 2 national communication campaign pa | D36: ='2.1 Literature Review'!J15 -> 8.0899 | E36: adjust for inflation from 2017 to 2025 | F36: 8.0899
A37: 10 | B37: ='2.1 Literature Review'!C16 -> BCC | C37: ='2.1 Literature Review'!K16 -> Cost per adolescent or youth reached by targeted multi-media communication campaign | D37: ='2.1 Literature Review'!J16 -> 10.988808 | E37: adjust for inflation from 2017 to 2025 | F37: 10.988808
B38: ='2.1 Literature Review'!C17 -> Sexual Education and Health Services | C38: ='2.1 Literature Review'!K17 -> Cost per youth 15-24 receiving SRH service in non-health care setting | D38: ='2.1 Literature Review'!J17 -> 720 | E38: adjust for inflation from 2017 to 2025 | F38: 720
A39: 6 | B39: ='2.1 Literature Review'!C18 -> ART | C39: ='2.1 Literature Review'!K18 -> Average cost per adult on ART (public and private) | D39: 3389.740047 | E39: adjust for inflation from 2017 to 2025 | F39: 3389.740047

Sheet 2.3 IBC Unit costs
B3: CHAPTER 8: CONSTRUCTING UNIT COSTS FROM INGREDIENTS
B5: Ingredients based costing of interventions
B9: INGREDIENT BASED COSTING RECIPE NOTES
B10: This is a template that should be copied and pasted, so that there is recipe for each intervention that is being costed by the IBC method
A13: Intervention Master List Line Number | B13: Intervention Name | C13: Description | G13: Intervention Output Unit | H13: Unit Cost
A14: 1 example | B14: Accredited CSE training, including design and distribution of teacher materials | G14: =G38 -> Total cost per unit | H14: =H38 -> 9559.506867
B15: Ingredient | C15: Measurement Unit | D15: Quantity | E15: Frequency | F15: Ingredient Unit Cost | G15: Note | H15: Total
B16: Accommodation | D16: 30 | E16: 6 | F16: 1150 | H16: =D16*E16*F16 -> 207000
B17: Teas | D17: 30 | E17: 5 | F17: 15 | H17: =D17*E17*F17 -> 2250
B18: Lunch | D18: 30 | E18: 5 | F18: 90 | H18: =D18*E18*F18 -> 13500
B19: Dinner | D19: 30 | E19: 6 | F19: 150 | H19: =F19*E19*D19 -> 27000
B20: Venue hire | D20: 1 | E20: 5 | F20: 2000 | H20: 10000
B21: Trainers | D21: 1 | E21: 5 | F21: 3000 | H21: 15000
B22: Shuttle | D22: 2 | E22: 2 | F22: 1500 | G22: 2 shuttles available | H22: 6000
B23: Service provider administration and overhead | D23: 1 | E23: 0.3 | F23: =H21 -> 15000 | G23: 30% of facilitator time | H23: 4500
H24: 0
B25: Scripted lesson plan booklets | D25: 30 | E25: 1 | F25: 17 | G25: Including distribution costs | H25: 510
B26: Development of plans | D26: 30 | E26: 1 | F26: 34.06 | G26: Assume development costs for 34 200 educators reached | H26: 1021.8
B27: Design and illustration | D27: 1 | E27: 0.1 | F27: =F26 -> 34.06 | G27: Assume 10% of development costs | H27: 3.406
G36: Total Cost | H36: =SUM(H15:H34) -> 286785.206
E37: teachers trained | G37: Number of units | H37: 30
G38: Total cost per unit | H38: =H36/H37 -> 9559.506867
A40: 2 | B40: HIV testing service | H40: =H66 -> 110.6615558
B41: Ingredient | C41: Measurement Unit | D41: Quantity | E41: Frequency | F41: Ingredient Unit Cost | G41: Note | H41: Total
B42: HR | H42: =D42*E42*F42 -> 0
B43: Counsellor & tester | C43: salary pa | D43: 10 | E43: 1 | F43: 74750 | H43: =D43*E43*F43 -> 747500
B44: Professional nurse G1 | C44: salary pa | D44: 1 | E44: 1 | F44: 260000 | H44: =D44*E44*F44 -> 260000
B45: Data capturers | C45: salary pa | D45: 1 | E45: 1 | F45: 84000 | H45: =F45*E45*D45 -> 84000
B46: Driver for testing events | C46: salary pa | D46: 0.33 | E46: 1 | F46: 72000 | H46: =F46*E46*D46 -> 23760
B47: Support HR | C47: 20% of direct costs | D47: 1 | E47: 1 | F47: 0.2 | H47: =SUM(H43:H46)*F47 -> 223052 | I47: Note here full cost, as includes an overhead to HR
B48: Consumables | H48: =F48*E48*D48 -> 0
B49: Gloves (100) | C49: per test | D49: 0.01 | E49: =$H$65 -> 15190 | F49: 67.95 | H49: =D49*E49*F49 -> 10321.605
B50: Lancets (100) | C50: per test | D50: 0.01 | E50: =$H$65 -> 15190 | F50: 22.05 | H50: =D50*E50*F50 -> 3349.395
B51: Alcohol swabs (200) | C51: per test | D51: 0.005 | E51: 15190 | F51: 26.95 | H51: =F51*E51*D51 -> 2046.8525
B52: Cotton wool balls | C52: per test | D52: 0.01 | E52: 15190 | F52: 68.35 | H52: 10382.365
B53: Hand scrub | C53: per test | D53: 0.02 | E53: 15190 | F53: 49.95 | H53: 15174.81
B54: Sharps container | C54: per test | D54: 0.01 | E54: 15190 | F54: 54.75 | H54: 8316.525
B55: Cleaning solution | C55: per test | D55: 0.01 | E55: 15190 | F55: 56.95 | H55: 8650.705
B56: Plasters | C56: per test | D56: 0.01 | E56: 15190 | F56: 16.25 | H56: 2468.375
B57: HIV Test kits | C57: per test | D57: 1 | E57: =H65 -> 15190 | F57: 6 | H57: 91140
B58: overheads | C58: per test | D58: 1 | E58: =H65 -> 15190 | F58: 12.56 | H58: =F58*E58*D58 -> 190786.4
G64: Total Cost | H64: =SUM(H42:H62) -> 1680949.032 | I64: unit definition
B65: Quantity = 7 tests per day per counsellor/tester x 10 testers x 217 testing days pa. Professional nurse quality assurance and supervision for 10 counsellors & testers. 1 data capturer captures data for tests from 10 testers. Driver and manager at 33% LoE for team of 10 testers. Administration overhead refers to the contribution to the management, finance and administration functions of the service provider. | E65: HIV testing services | G65: Number of units | H65: =D43*WorkingDaysAnnual*TestpDay -> 15190
G66: Total cost per unit | H66: =H64/H65 -> 110.6615558
A68: 2 | B68: Yolo HIV prevention programme | H68: =H94 -> 196766.6667
B69: Ingredient | C69: Measurement Unit | D69: Quantity | E69: Frequency | F69: Ingredient Unit Cost | G69: Note | H69: Total
B70: Field officers | C70: pm | D70: 25 | E70: 12 | F70: 5000 | G70: Assume 180 training days pa. 2 FOs per course of 60 youth. 450 youth per FO. Own deduction from source documents. | H70: =D70*E70*F70 -> 1500000
B71: Yolo training: Catering | C71: pp | D71: 11250 | E71: 12 | F71: 60 | H71: =D71*E71*F71 -> 8100000
B72: Yolo training: Stationery & materials | C72: pp | D72: 11250 | E72: 1 | F72: 40 | H72: 450000
H73: 0
B74: Yolo Events: Prizes and refreshments | D74: =D72 -> 11250 | E74: 4 | F74: 20 | G74: For HCT mobilisation | H74: 900000
H75: 0
B76: Programme manager | C76: pm | D76: 0.5 | E76: 12 | F76: 15000 | G76: 50% FTE | H76: 90000
B77: Administrator/Finance | C77: pm | D77: 1 | E77: 12 | F77: 10000 | G77: 50% FTE | H77: 120000
B78: Program Cordinator | C78: pm | D78: 1 | E78: 12 | F78: 12000 | H78: 144000
B79: Vehicle allowance | C79: pm | D79: 1 | E79: 12 | F79: 3000 | H79: 36000
B80: water and electricty | C80: pm | D80: 1 | E80: 12 | F80: 2000 | H80: 24000
B81: Fuel & maintanance | C81: pm | D81: 1 | E81: 12 | F81: 10000 | H81: 120000
B82: Telephone | C82: pm | D82: 1 | E82: 12 | F82: 3000 | H82: 36000
B83: IT | C83: pm | D83: 1 | E83: 12 | F83: 2500 | H83: 30000
B84: Rental | C84: pm | D84: 1 | E84: 12 | F84: 10000 | H84: 120000
B85: stationary and printing | C85: pm | D85: 1 | E85: 12 | F85: 2000 | H85: 24000
B86: Accommodation | C86: pm | D86: 1 | E86: 12 | F86: =1500*5 -> 7500 | H86: 90000
B87: Bank charges | C87: pm | D87: 1 | E87: 12 | F87: 1000 | H87: 12000
B88: Audit | C88: pa | D88: 1 | E88: 1 | F88: 10000 | H88: 10000
G92: Total Cost | H92: =SUM(H70:H90) -> 11806000
E93: N | G93: number of partricipants | H93: 60
G94: Total cost per participant | H94: =H92/H93 -> 196766.6667

Sheet 2.4 IBC Common Ingredients
B3: CHAPTER 8: CONSTRUCTING UNIT COSTS FROM INGREDIENTS
B5: Common input prices
B9: List of common ingredients to reference in recipes
B10: This table includes any common ingredients that the analyst wants to reference when building recipes
B12: Ingredient | C12: Measurement Unit | D12: Ingredient Unit Price | E12: Currency | F12: Source | G12: Assumptions
A13: example | B13: Salaries by Cadre
B14: Medical Doctor | C14: full-time equivalent (FTE), pa | D14: 1800000 | E14: TZ Shilings | F14: Government salary list, MoH | G14: cost to company: salary + benefits
B15: Registered Nurse | C15: full-time equivalent (FTE), pa | D15: 1000000 | E15: TZ Shilings | F15: Government salary list, MoH
B16: Youth club facilitators | C16: full-time equivalent (FTE), pa | D16: 300000 | E16: TZ Shilings | F16: …..
B17: Youth club facilitator training
B19: Estimated annual working hours per FTE | C19: working hours estimate | D19: =220*6 -> 1320 | E19: hours | F19: Interview with HR manager MoH, January 29, 2023 | G19: 6 weeks holiday, 1 week exceptional leave for sickness, funerals, 1 week national holidays. 52 weeks - 8 weeks: 44 weeks= 220 working days. Working hours: 8 hours - coffee, lunch break, training, general admin, leaves 6 hours.
B22: Common activity costs
B23: Workshops/trainings
B24: Ingredient | C24: Measurement Unit | D24: Ingredient Unit Cost | E24: Currency | F24: Source
B29: Total cost per workshop
B30: total cost per workshop attendee
G34: Tabl

Sheet 2.4 Lump Sum (hidden)
B2: INTERVENTIONS COSTED AS LUMP SUM
B3: This table is for documentation of interventions being costed by lump sum
A6: Intervention Master List Line Number | B6: Intervention Name | C6: Description | G6: Lump Sum Amount
A7: 1 | B7: =VLOOKUP($A7,'1.4 Interventions'!$B$11:$C$110,5,0) ->  | C7: Implement age-appropriate life skills, behaviour change and empowerment activities through the peer education and youth club model, focusing on girls in and out of primary schools (8-14 Years). 1 club per school. 25 participants be club. This is regarded as a "high norms & standards" youth club for priority districts. Above site management and overhead costs from a service provider perspective only | G7: 50000
B8: =VLOOKUP($A8,'1.4 Interventions'!$B$11:$C$110,5,0) -> 
B9: =VLOOKUP($A9,'1.4 Interventions'!$B$11:$C$110,5,0) -> 
B10: =VLOOKUP($A10,'1.4 Interventions'!$B$11:$C$110,5,0) -> 
B11: =VLOOKUP($A11,'1.4 Interventions'!$B$11:$C$110,5,0) -> 
B12: =VLOOKUP($A12,'1.4 Interventions'!$B$11:$C$110,5,0) -> 
B13: =VLOOKUP($A13,'1.4 Interventions'!$B$11:$C$110,5,0) -> 
B14: =VLOOKUP($A14,'1.4 Interventions'!$B$11:$C$110,5,0) -> 
B15: =VLOOKUP($A15,'1.4 Interventions'!$B$11:$C$110,5,0) -> 

Sheet 3.1 Unit Cost Table
B3: CHAPTER 9: BRINGING IT ALL TOGETHER - ESTIMATING TOTAL COSTS
B5: Unit costs
G8: Year-specific Unit Cost
A9: Line # | B9: Unit definition | C9: Source and Explanation | D9: Costing Method | E9: Unit Cost (Base Year) | F9: Base Year | G9: 2025 | H9: =G9+1 -> 2026 | I9: =H9+1 -> 2027 | J9: =I9+1 -> 2028 | K9: =J9+1 -> 2029 | L9: =K9+1 -> 2030 | M9: Notes on Year-specific adjustments
A10: Ex. 1 | B10: Average cost per person tested for HIV - PICT | C10: SA HIV Investment Case. Assumes a 10% positivity rate | D10: Ingredients | E10: =UCHIVTest -> 110.6615558 | F10: 2024 | G10: =E10 -> 110.6615558 | H10: =G10 -> 110.6615558 | I10: =H10 -> 110.6615558 | J10: 110.6615558 | K10: 110.6615558 | L10: 110.6615558
A11: Ex. 2 | B11: Cost per male circumcision | C11: Investment Case, inf adjusted. Corroborated by Avenir study, 2016 | D11: Literature | E11: ='2.1 Literature Review'!J12 -> 1504.014002 | F11: 2024 | G11: 1504.014002 | H11: =G11 -> 1504.014002 | I11: 1504.014002 | J11: 1504.014002 | K11: 1504.014002 | L11: 1504.014002
A12: Ex. 3 | B12: Cost per educator trained on CSE | C12: Source: DBE costing, adapted. Includes development costs and teacher support materials | D12: Ingredients | E12: ='2.3 IBC Unit costs'!H14 -> 9559.506867 | F12: 2024 | G12: 9559.506867 | H12: =G12 -> 9559.506867 | I12: 9559.506867 | J12: 9559.506867 | K12: 9559.506867 | L12: 9559.506867
A13: Ex. 4 | B13: Youth friendly PHC service | C13: Adolescent & Youth Health Policy Costing Model, 2016. Includes training and provincial visits and assessments | D13: Literature | E13: 17760153.5 | F13: 2024 | G13: 17760153.5 | H13: =G13 -> 17760153.5 | I13: 17760153.5 | J13: 17760153.5 | K13: 17760153.5 | L13: 17760153.5
A14: Ex. 5 | B14: woman 20-24 receiving PrEP | C14: NDOH (HERO) PrEP costing 2016, applying NSP enrollment scenario | D14: SAG costing model | E14: 2978.432354 | F14: 2024 | G14: 2978.432354 | H14: =G14 -> 2978.432354 | I14: 2978.432354 | J14: 2978.432354 | K14: 2978.432354 | L14: 2978.432354
A15: Ex. 6 | B15: Average cost per adult on ART (public and private) | C15: NACM Output March 2017. Scenario 1A: Current regimens and adherence strategy implementation | D15: SAG costing model | E15: 3389.740047 | F15: 2024 | G15: 3389.740047 | H15: =G15 -> 3389.740047 | I15: 3389.740047 | J15: 3389.740047 | K15: 3389.740047 | L15: 3389.740047
A16: Ex. 7 | B16: Cost per adolescent 15-19 participating in club model | C16: SA Global Fund grant portfolio, 2016. Based on Rise SCI model | D16: Ingredients | E16: 916.25 | F16: 2024 | G16: 916.25 | H16: =G16 -> 916.25 | I16: 916.25 | J16: 916.25 | K16: 916.25 | L16: 916.25
A17: Ex. 8 | B17: Annual cost of human rights reporting mechanism | C17: Internal budget. Includes establishment of reporting mechanism, IEC dissemination and community advisory desks | D17: Ingredients | E17: 5618000 | F17: 2024 | G17: 5618000 | H17: =G17 -> 5618000 | I17: 5618000 | J17: 5618000 | K17: 5618000 | L17: 5618000
A18: Ex. 9 | B18: Annual programme management cost - social protection departments | C18: Derived from national and provincial budgets | D18: Literature | E18: 690911879 | F18: 2024 | G18: 690911879 | H18: =G18 -> 690911879 | I18: 690911879 | J18: 690911879 | K18: 690911879 | L18: 690911879
A19: Ex. 10 | B19: Cost per pp reached by 2 national communication campaign pa | C19: Source: SA Investment Case. Aggregate of 2 national campaigns. Inflation adjusted | D19: Literature | E19: 8.0899 | F19: 2024 | G19: 8.0899 | H19: =G19 -> 8.0899 | I19: =H19 -> 8.0899 | J19: =I19 -> 8.0899 | K19: =J19 -> 8.0899 | L19: =K19 -> 8.0899
A20: 11
A21: 12
A22: 13
A23: 14
A24: 15
A25: 16
A26: 17
A27: 18
A28: 19
A29: 20
A30: 21
A31: 22
A32: 23
A33: 24
A34: 25
A35: 26
A36: 27
A37: 28
A38: 29
A39: 30
A40: 31
A41: 32
A42: 33
A43: 34
A44: 35
A45: 36
A46: 37
A47: 38
A48: 39
A49: 40
A50: 41
A51: 42
A52: 43
A53: 44
A54: 45
A55: 46
A56: 47
A57: 48
A58: 49
A59: 50
A60: 51
A61: 52
A62: 53
A63: 54
A64: 55
A65: 56
A66: 57
A67: 58
A68: 59
A69: 60
A70: 61
A71: 62
A72: 63
A73: 64
A74: 65
A75: 66
A76: 67
A77: 68
A78: 69
A79: 70
A80: 71
A81: 72
A82: 73
A83: 74
A84: 75
A85: 76
A86: 77
A87: 78
A88: 79
A89: 80
A90: 81
A91: 82
A92: 83
A93: 84
A94: 85
A95: 86
A96: 87
A97: 88
A98: 89
A99: 90
A100: 91
A101: 92
A102: 93
A103: 94
A104: 95
A105: 96
A106: 97
A107: 98

Sheet 3.2 Population Indicators
B3: CHAPTER 9: BRINGING IT ALL TOGETHER - ESTIMATING TOTAL COSTS
B5: Quantity Calculations
D8: Year
D9: 2025 | E9: =D9+1 -> 2026 | F9: =E9+1 -> 2027 | G9: 2028 | H9: 2029 | I9: 2030
B10: Intervention | C10: ='1.4 Interventions'!C13 -> Comprehensive HIV testing services - provider initiated
B11: Unit Definition | C11: ='3.3 NSP Total Costs'!G10 -> Persons Tested
C12: Total Quantity in Need | D12: 10000000 | E12: 10000000 | F12: 10000000 | G12: 10000000 | H12: 10000000 | I12: 10000000
C13: Coverage Target | D13: 0.4 | E13: 0.4 | F13: 0.4 | G13: 0.4 | H13: 0.4 | I13: 0.6
C14: Quantity Reached | D14: =D13*D12 -> 4000000 | E14: =E13*E12 -> 4000000 | F14: 4000000 | G14: 4000000 | H14: 4000000 | I14: 6000000
B16: Intervention | C16: ='1.4 Interventions'!C14 -> Medical male circumcision
B17: Unit Definition | C17: ='3.3 NSP Total Costs'!G11 -> Procedure Completed
C18: Total Quantity in Need
C19: Coverage Target
C20: Quantity Reached
B22: Intervention | C22: ='1.4 Interventions'!C15 -> Curriculum based Comprehensive Sexuality Education in schools using scripted lesson plans
B23: Unit Definition | C23: Educator Trained
C24: Total Quantity in Need
C25: Coverage Target
C26: Quantity Reached
B28: Intervention | C28: ='1.4 Interventions'!C16 -> Strengthen youth friendly services for adolescents and youth through the DOH public health care system
B29: Unit Definition | C29: District-wide program
C30: Total Quantity in Need | D30: 27 | E30: 27 | F30: 27 | G30: 27 | H30: 27 | I30: 27
C31: Coverage Target | D31: 1 | E31: 1 | F31: 1 | G31: 1 | H31: 1 | I31: 1
C32: Quantity Reached | D32: =D30*D31 -> 27 | E32: =E30*E31 -> 27 | F32: 27 | G32: 27 | H32: 27 | I32: 27
B34: Intervention | C34: ='1.4 Interventions'!C17 -> Provide oral PrEP to young women - 20 - 24
B35: Unit Definition | C35: Person-Year
C36: Total Quantity in Need
C37: Coverage Target
C38: Quantity Reached
B40: Intervention | C40: ='1.4 Interventions'!C18 -> Accelerate ART initiation and retention in care for all PLHIV in a way that ensures equity - Adults
B41: Unit Definition | C41: Person-Year
C42: Total Quantity in Need
C43: Coverage Target
C44: Quantity Reached | D44: 4115916 | E44: 4602275 | F44: 5086960 | G44: 5444905 | H44: 5693632 | I44: 5868068
B46: Intervention | C46: ='1.4 Interventions'!C19 -> Combination prevention package targeting Adolescent girls and young women - 15 -19 years, in schools - youth club model
B47: Unit Definition | C47: Participant
C48: Total Quantity in Need
C49: Coverage Target
C50: Quantity Reached
B52: Intervention | C52: ='1.4 Interventions'!C20 -> Social mobilisation and education on rights and laws relevant to HIV and TB
B53: Unit Definition | C53: Nationwide program
C54: Total Quantity in Need
C55: Coverage Target
C56: Quantity Reached
B58: Intervention | C58: ='1.4 Interventions'!C21 -> Programme management costs for core government departments implementing the NSP
B59: Unit Definition | C59: Nationwide program
C60: Total Quantity in Need
C61: Coverage Target
C62: Quantity Reached
B64: Intervention | C64: ='1.4 Interventions'!C22 -> Nationally co-ordinated multi media campaign targeting all risk groups in the general population
B65: Unit Definition | C65: Person Reached
C66: Total Quantity in Need
C67: Coverage Target
C68: Quantity Reached

Sheet Dropdowns
A1: Program Area | B1: Interventions | C1: Target Populations | D1: Implementer | E1: Scale | F1: New/Routine | G1: Include in Costing? | H1: If partially or no, specify | I1: Big ticket item | J1: Process Map | K1: Costing Method | L1: Primary source? | M1: Source Type | N1: Modeled vs. Observed | O1: Financia vs. Economic | P1: Full vs. Incremental | Q1: Does this meet costing purpose? | R1: Region | S1: Country Income Level | T1: Costing Perspective | U1: Costing Aim | V1: Projected inflation to future costs | W1: Normative/Real-world | X1: Source Type | Y1: Service-level human resources | Z1: Method for Estimation | AA1: Source Type | AB1: Modeling software | AC1: Progress Status
A2: Test & Treat | B2: HIV Testing | C2: N/A | D2: Not specified/no information provided | E2: National | F2: Routine intervention, no adaptations | G2: Yes | H2: Not relevant to costing aims | I2: Yes | J2: Yes | K2: Adapt existing unit cost | L2: Yes | M2: Published peer-reviewed | N2: Modeled | O2: Financial | P2: Full | Q2: Yes | R2: Asia and the Pacific | S2: Low-Income Country | T2: Provider | U2: Full resource needs estimate of NSP interventions | V2: Yes, annual inflation rate: | W2: Normative costs | Y2: Included in cost estimate | Z2: Unit cost adapted from literature | AA2: Budget | AC2: Not started
A3: Paediatric Test & Treat | B3: Early Infant Diagnosis | C3: Not specified/no information provided | D3: Public sector | E3: Regional | F3: Routine intervention, adaptations needed | G3: Partially | H3: Not relevant to costing provider perspective | I3: No | J3: No | K3: Build unit cost from scratch | L3: No | M3: Grey Literature | N3: Observed | O3: Economic | P3: Incremental | Q3: No | R3: Eastern Europe and Central Asia | S3: Lower-Middle-Income Country | T3: Societal | U3: Cost a list of prioritized interventions | V3: No. Specify why: | W3: Real world costs | Y3: Included elsewhere | Z3: Unit cost modeled from ingredient based costing | AA3: Expenditure report | AC3: In Progress
A4: Integrated Health Services | B4: Paediatric treatment | C4: General Population | D4: Private sector, international, for profit | E4: Targeted Sites | F4: Piloted/recently implemented intervention, adaptations and/or scale-up needed | G4: No | H4: Not repevant to cost type | K4: Lumpsum | N4: Unsure | O4: Unsure | P4: Unsure | Q4: Unsure | R4: Eastern and Southern Africa | S4: Upper-Middle-Income Country | U4: Identifying resource needs gaps to realize NSP targets | Y4: Excluded from NSP costing | Z4: Lump Sum | AA4: Key Informant Interview | AC4: Complete
A5: Prevention Services | B5: ART | C5: Key and/or Vulnerable Populations | D5: Private sector, national, for profit | E5: Other | F5: Novel intervention, no pilot or prior country implementation done | K5: Percentage of direct costs | R5: Latin America and the Caribbean | S5: High-Income Country | U5: Other (please specify) | Z5: % | AA5: Peer-reviewed study
A6: Societal Enablers | B6: Laboratory | C6: PLHIV | D6: Private sector, international, non profit | K6: Other | R6: Middle East and North Africa | AA6: Country modeled costing
A7: Support Functions | B7: Retention Support | C7: Adult Men (18 and above) | D7: Private sector, national, non profit | R7: Western and Central Africa
B8: Tuberculosis | D8: Private sector, community or civil society organizations, non profit | R8: Western and Central Europe and North America
B9: Cervical Cancer | D9: Other
B10: VMMC
B11: Condoms, lubricants, and other
B12: Tailored Services
B13: PrEP
B14: Community mobilization
B15: STI
B16: PEP
B17: Sexual Education and Health Services
B18: OVC support
B19: Monitoring and research
B20: Health system strengthening
B21: Stigma & discrimination
B22: Testing & Treatment of pregnant women
B23: Economic empowerment
B24: Hepatitis C
B25: Syphilis
B26: Nutrition support
B27: Hepatitis B & C
B28: TB
B29: Mental Health
B30: Parenting support
B31: Gender Inequality
B32: Human rights
B33: Policy advocacy
B34: Hepatitis B
B35: BCC

Sheet 3.3 NSP Total Costs
B3: CHAPTER 9: BRINGING IT ALL TOGETHER - ESTIMATING TOTAL COSTS
B5: Total costs
C8: NSP Framework | G8: Intervention Scale (number of output units) | N8: Unit Cost | P8: Year-specific Unit Cost | V8: Annual Costs (Quantities x Prices)
A9: Intervention Master List Line Number | B9: Intervention | C9: NSP Objective | D9: NSP Sub-Objective | E9: Rollup Category | F9: Costing Method | G9: Intervention Output Unit Definition (Population) | H9: =StartYear -> 0 | I9: =H9+1 -> 1 | J9: =I9+1 -> 2 | K9: =J9+1 -> 3 | L9: =K9+1 -> 4 | M9: =L9+1 -> 5 | N9: Unit definition | O9: Unit Cost (Base Year) | P9: =StartYear -> 0 | Q9: =P9+1 -> 1 | R9: =Q9+1 -> 2 | S9: =R9+1 -> 3 | T9: =S9+1 -> 4 | U9: =T9+1 -> 5 | V9: =StartYear -> 0 | W9: =V9+1 -> 1 | X9: =W9+1 -> 2 | Y9: =X9+1 -> 3 | Z9: =Y9+1 -> 4 | AA9: =Z9+1 -> 5
A10: 1 | B10: ='1.4 Interventions'!C13 -> Comprehensive HIV testing services - provider initiated | C10: 1. Accelerate prevention to reduce new HIV, TB and STI infections. | D10: 1.1.2 Implement targeted combination prevention services tailored to setting and population | E10: Testing | F10: Ingredients | G10: Persons Tested | H10: ='3.2 Population Indicators'!D14 -> 4000000 | I10: ='3.2 Population Indicators'!E14 -> 4000000 | J10: ='3.2 Population Indicators'!F14 -> 4000000 | K10: ='3.2 Population Indicators'!G14 -> 4000000 | L10: ='3.2 Population Indicators'!H14 -> 4000000 | M10: ='3.2 Population Indicators'!I14 -> 6000000 | N10: ='3.1 Unit Cost Table'!B10 -> Average cost per person tested for HIV - PICT | O10: ='3.1 Unit Cost Table'!E10 -> 110.6615558 | P10: ='3.1 Unit Cost Table'!G10 -> 110.6615558 | Q10: ='3.1 Unit Cost Table'!H10 -> 110.6615558 | R10: ='3.1 Unit Cost Table'!I10 -> 110.6615558 | S10: ='3.1 Unit Cost Table'!J10 -> 110.6615558 | T10: ='3.1 Unit Cost Table'!K10 -> 110.6615558 | U10: ='3.1 Unit Cost Table'!L10 -> 110.6615558 | V10: =H10*P10 -> 442646223.2 | W10: =I10*Q10 -> 442646223.2 | X10: 442646223.2 | Y10: 442646223.2 | Z10: 442646223.2 | AA10: 663969334.8
A11: 2 | B11: ='1.4 Interventions'!C14 -> Medical male circumcision | C11: 1. Accelerate prevention to reduce new HIV, TB and STI infections. | D11: 1.1.2 Implement targeted combination prevention services tailored to setting and population | E11: Biomedical Prevention | F11: Literature | G11: Procedure Completed | N11: ='3.1 Unit Cost Table'!B11 -> Cost per male circumcision | O11: ='3.1 Unit Cost Table'!E11 -> 1504.014002 | P11: ='3.1 Unit Cost Table'!G11 -> 1504.014002 | Q11: ='3.1 Unit Cost Table'!H11 -> 1504.014002 | R11: ='3.1 Unit Cost Table'!I11 -> 1504.014002 | S11: ='3.1 Unit Cost Table'!J11 -> 1504.014002 | T11: ='3.1 Unit Cost Table'!K11 -> 1504.014002 | U11: ='3.1 Unit Cost Table'!L11 -> 1504.014002
A12: 3 | B12: ='1.4 Interventions'!C15 -> Curriculum based Comprehensive Sexuality Education in schools using scripted lesson plans | C12: 1. Accelerate prevention to reduce new HIV, TB and STI infections. | D12: 1.1.2 Implement targeted combination prevention services tailored to setting and population | E12: Prevention | F12: Ingredients | G12: Educator Trained | N12: ='3.1 Unit Cost Table'!B12 -> Cost per educator trained on CSE | O12: ='3.1 Unit Cost Table'!E12 -> 9559.506867 | P12: ='3.1 Unit Cost Table'!G12 -> 9559.506867 | Q12: ='3.1 Unit Cost Table'!H12 -> 9559.506867 | R12: ='3.1 Unit Cost Table'!I12 -> 9559.506867 | S12: ='3.1 Unit Cost Table'!J12 -> 9559.506867 | T12: ='3.1 Unit Cost Table'!K12 -> 9559.506867 | U12: ='3.1 Unit Cost Table'!L12 -> 9559.506867
A13: 4 | B13: ='1.4 Interventions'!C16 -> Strengthen youth friendly services for adolescents and youth through the DOH public health care system | C13: 1. Accelerate prevention to reduce new HIV, TB and STI infections. | D13: 1.1.3 Provide sensitive and age-appropriate sexual and reproductive health services (SRH) and comprehensive sexuality education (CSE) | E13: Prevention | F13: Literature | G13: District-wide program | H13: ='3.2 Population Indicators'!D32 -> 27 | I13: ='3.2 Population Indicators'!E32 -> 27 | J13: ='3.2 Population Indicators'!F32 -> 27 | K13: ='3.2 Population Indicators'!G32 -> 27 | L13: ='3.2 Population Indicators'!H32 -> 27 | M13: ='3.2 Population Indicators'!I32 -> 27 | N13: ='3.1 Unit Cost Table'!B13 -> Youth friendly PHC service | O13: ='3.1 Unit Cost Table'!E13 -> 17760153.5 | P13: ='3.1 Unit Cost Table'!G13 -> 17760153.5 | Q13: ='3.1 Unit Cost Table'!H13 -> 17760153.5 | R13: ='3.1 Unit Cost Table'!I13 -> 17760153.5 | S13: ='3.1 Unit Cost Table'!J13 -> 17760153.5 | T13: ='3.1 Unit Cost Table'!K13 -> 17760153.5 | U13: ='3.1 Unit Cost Table'!L13 -> 17760153.5 | V13: =H13*P13 -> 479524144.5 | W13: 479524144.5 | X13: 479524144.5 | Y13: 479524144.5 | Z13: 479524144.5 | AA13: 479524144.5
A14: 5 | B14: ='1.4 Interventions'!C17 -> Provide oral PrEP to young women - 20 - 24 | C14: 1. Accelerate prevention to reduce new HIV, TB and STI infections. | D14: 1.1.3 Provide sensitive and age-appropriate sexual and reproductive health services (SRH) and comprehensive sexuality education (CSE) | E14: Biomedical Prevention | F14: SAG costing model | G14: Person-Year | N14: ='3.1 Unit Cost Table'!B14 -> woman 20-24 receiving PrEP | O14: ='3.1 Unit Cost Table'!E14 -> 2978.432354 | P14: ='3.1 Unit Cost Table'!G14 -> 2978.432354 | Q14: ='3.1 Unit Cost Table'!H14 -> 2978.432354 | R14: ='3.1 Unit Cost Table'!I14 -> 2978.432354 | S14: ='3.1 Unit Cost Table'!J14 -> 2978.432354 | T14: ='3.1 Unit Cost Table'!K14 -> 2978.432354 | U14: ='3.1 Unit Cost Table'!L14 -> 2978.432354
A15: 6 | B15: ='1.4 Interventions'!C18 -> Accelerate ART initiation and retention in care for all PLHIV in a way that ensures equity - Adults | C15: 1. Accelerate prevention to reduce new HIV, TB and STI infections. | D15: 1.1.4 Provide Pre-Exposure Prophylaxis (PREP) to identified risk populations | E15: Treatment | F15: SAG costing model | G15: Person-Year | H15: ='3.2 Population Indicators'!D44 -> 4115916 | I15: ='3.2 Population Indicators'!E44 -> 4602275 | J15: ='3.2 Population Indicators'!F44 -> 5086960 | K15: ='3.2 Population Indicators'!G44 -> 5444905 | L15: ='3.2 Population Indicators'!H44 -> 5693632 | M15: ='3.2 Population Indicators'!I44 -> 5868068 | N15: ='3.1 Unit Cost Table'!B15 -> Average cost per adult on ART (public and private) | O15: ='3.1 Unit Cost Table'!E15 -> 3389.740047 | P15: ='3.1 Unit Cost Table'!G15 -> 3389.740047 | Q15: ='3.1 Unit Cost Table'!H15 -> 3389.740047 | R15: ='3.1 Unit Cost Table'!I15 -> 3389.740047 | S15: ='3.1 Unit Cost Table'!J15 -> 3389.740047 | T15: ='3.1 Unit Cost Table'!K15 -> 3389.740047 | U15: ='3.1 Unit Cost Table'!L15 -> 3389.740047
A16: 7 | B16: ='1.4 Interventions'!C19 -> Combination prevention package targeting Adolescent girls and young women - 15 -19 years, in schools - youth club model | C16: 2. Reduce morbidity and mortality by providing treatment, care and adherence support for all. | D16: 2.1.2 90% of all people with diagnosed HIV infection receive sustained antiretroviral therapy | E16: Prevention | F16: Ingredients | G16: Participant | N16: ='3.1 Unit Cost Table'!B16 -> Cost per adolescent 15-19 participating in club model | O16: ='3.1 Unit Cost Table'!E16 -> 916.25 | P16: ='3.1 Unit Cost Table'!G16 -> 916.25 | Q16: ='3.1 Unit Cost Table'!H16 -> 916.25 | R16: ='3.1 Unit Cost Table'!I16 -> 916.25 | S16: ='3.1 Unit Cost Table'!J16 -> 916.25 | T16: ='3.1 Unit Cost Table'!K16 -> 916.25 | U16: ='3.1 Unit Cost Table'!L16 -> 916.25
A17: 8 | B17: ='1.4 Interventions'!C20 -> Social mobilisation and education on rights and laws relevant to HIV and TB | C17: 3. Reach all key and vulnerable populations with comprehensive, customised and targeted interventions. | D17: 3.1.3 All key and vulnerable population programmes should adopt a peer educator led approach to implementation | E17: Enablers | F17: Ingredients | G17: Nationwide program | H17: 1 | I17: 1 | J17: 1 | K17: 1 | L17: 1 | M17: 1 | N17: ='3.1 Unit Cost Table'!B17 -> Annual cost of human rights reporting mechanism | O17: ='3.1 Unit Cost Table'!E17 -> 5618000 | P17: ='3.1 Unit Cost Table'!G17 -> 5618000 | Q17: ='3.1 Unit Cost Table'!H17 -> 5618000 | R17: ='3.1 Unit Cost Table'!I17 -> 5618000 | S17: ='3.1 Unit Cost Table'!J17 -> 5618000 | T17: ='3.1 Unit Cost Table'!K17 -> 5618000 | U17: ='3.1 Unit Cost Table'!L17 -> 5618000 | V17: =H17*P17 -> 5618000 | W17: =I17*Q17 -> 5618000 | X17: =J17*R17 -> 5618000 | Y17: =K17*S17 -> 5618000 | Z17: =L17*T17 -> 5618000 | AA17: =M17*U17 -> 5618000
A18: 9 | B18: ='1.4 Interventions'!C21 -> Programme management costs for core government departments implementing the NSP | C18: 5. Ground the response to HIV, TB and STIs in human rights principles and approaches | D18: 5.2.1 Improve legal literacy about human rights and laws relevant to HIV and TB | E18: Program Management | F18: Literature | G18: Nationwide program | H18: 1 | I18: 1 | J18: 1 | K18: 1 | L18: 1 | M18: 1 | N18: ='3.1 Unit Cost Table'!B18 -> Annual programme management cost - social protection departments | O18: ='3.1 Unit Cost Table'!E18 -> 690911879 | P18: ='3.1 Unit Cost Table'!G18 -> 690911879 | Q18: ='3.1 Unit Cost Table'!H18 -> 690911879 | R18: ='3.1 Unit Cost Table'!I18 -> 690911879 | S18: ='3.1 Unit Cost Table'!J18 -> 690911879 | T18: ='3.1 Unit Cost Table'!K18 -> 690911879 | U18: ='3.1 Unit Cost Table'!L18 -> 690911879 | V18: 690911879 | W18: 690911879 | X18: 690911879 | Y18: 690911879 | Z18: 690911879 | AA18: 690911879
A19: 10 | B19: ='1.4 Interventions'!C22 -> Nationally co-ordinated multi media campaign targeting all risk groups in the general population | C19: 9. Critical enablers to maximise the reach and impact of National response to HIV, TB and STIs | D19: 9.1.4 Enabler 6: Programme management, planning, co-ordination and oversight | E19: Enablers | F19: Literature | G19: Person Reached | N19: ='3.1 Unit Cost Table'!B19 -> Cost per pp reached by 2 national communication campaign pa | O19: ='3.1 Unit Cost Table'!E19 -> 8.0899 | P19: ='3.1 Unit Cost Table'!G19 -> 8.0899 | Q19: ='3.1 Unit Cost Table'!H19 -> 8.0899 | R19: ='3.1 Unit Cost Table'!I19 -> 8.0899 | S19: ='3.1 Unit Cost Table'!J19 -> 8.0899 | T19: ='3.1 Unit Cost Table'!K19 -> 8.0899 | U19: ='3.1 Unit Cost Table'!L19 -> 8.0899
A20: 11
A21: 12
A22: 13
A23: 14
A24: 15
A25: 16
A26: 17
A27: 18
A28: 19
A29: 20
A30: 21
A31: 22
A32: 23
A33: 24
A34: 25
A35: 26
A36: 27
A37: 28
A38: 29
A39: 30
A40: 31
A41: 32
A42: 33
A43: 34
A44: 35
A45: 36
A46: 37
A47: 38
A48: 39
A49: 40
A50: 41
A51: 42
A52: 43
A53: 44
A54: 45
A55: 46
A56: 47
A57: 48
A58: 49
A59: 50
A60: 51
A61: 52
A62: 53
A63: 54
A64: 55
A65: 56
A66: 57
A67: 58
A68: 59
A69: 60
A70: 61
A71: 62
A72: 63
A73: 64
A74: 65
A75: 66
A76: 67
A77: 68
A78: 69
A79: 70
A80: 71
A81: 72
A82: 73
A83: 74
A84: 75
A85: 76
A86: 77
A87: 78
A88: 79
A89: 80
A90: 81
A91: 82
A92: 83
A93: 84
A94: 85
A95: 86
A96: 87
A97: 88
A98: 89
A99: 90
A100: 91
A101: 92
A102: 93
A103: 94
A104: 95
A105: 96
A106: 97
A107: 98
C109: TOTAL | V109: =SUM(V10:V108) -> 1618700247

Sheet 4.1 Efficiency
B3: CHAPTER 10: FURTHER ANALYSIS
B5: Efficiency
A9: Step 1: indentify inefficiencies and solutions
A10: Step 2: identify that top 3 to 5 that can likely lead to the greatest efficiency gains.
A11: Step 3: identify which inputs change as a result
A12: Step 4: See the impact on the unit costs, input into model to obtain budget impact.
A13: Step 5: if you are estimating the full budget using 3.3, then undertake budget impact analysis, by linking the unit cost in 3.1. to the efficient unit cost here.
B16: Efficiency analysis inputs: operationalising the proposed changes Example. | D16: Examples: you can also insert new rows
B17: Draw on Table 9 to identify the top 3-5 areas for potential efficiency gains. Identify the key cost that would change and the associated change in impact/ uptake/coverage that would ensue. | E17: Current | F17: Efficient | G17: Unit definition
A18: Example | B18: e.g. enhanced retention programmes: leads to change in retention programme cost | E18: $20 per person per year on ART | F18: $25 per person year | G18: Retention programme per person on ART per year
B19: change in share of people on 2nd line ART, attributable to improved retention programme | E19: 0.2 | F19: 0.15 | G19: % of all people on ART on 2nd line treatment
B20: cost of 1st line: $150, cost of 2nd line $500 | G20: change in ART cost per year was 80%*150+20%*$500+$20= $240 now 85%*$150+15%*$500+$25=$227.50 Now compare total NSP budget with current cost and efficient cost to obtain impact on total budget to get understand the budget impact
B21: Annual ART cost: weighted average of 1st and 2nd line treatment costs plus the retention programme costs
B22: % on 1st line * 1st line cost | E22: =0.8*150 -> 120 | F22: =0.85*150 -> 127.5
B23: % on 2nd line * 2nd line cost | E23: =0.2*500 -> 100 | F23: =0.15*500 -> 75
B24: Retention programme cost | E24: 20 | F24: 25
B25: Total annual ART cost per year | E25: =SUM(E22:E24) -> 240 | F25: =SUM(F22:F24) -> 227.5
B26: % change in unit cost | F26: =(F25-E25)/E25 -> -0.05208333333

Sheet 4.2 SA
B3: CHAPTER 10: FURTHER ANALYSIS
B5: Sensitivity analysis
A8: Step 1: identify key variables with uncertaintly: enter them into column C.
A9: Step 2: name the cells for use in the analysis in column G
C11: Key variables that need exploring in the further analyses of sensitivity, and efficiency analysis:
C13: Sensitivity analysis assumptions | D13: Input Parameter Values
C14: Change in input prices | D14: Low | E14: Base Case | F14: High | G14: Named Cell | H14: Define unit
B15: Salaries | C15: Doctors (-20%, +20% | D15: =E15-0.1*E15 -> 22.5 | E15: 25 | F15: =E15+0.1*E15 -> 27.5 | G15: =E15 -> 25 | H15: hour | I15: Remember this is per direct working hour: This is annual salary inclusive of any benefits, like pension/ hours worked per year. Daily working hours do not count breaks and indirect time. Days per year do not include holiday, sick/funeral days/ training days. So if a person has 6 weeks of holiday and 2 more weeks off for public holidyas, sick leave, funerals and training, then there are 52 -8 weeks=46 *5 days = 230 days. If the working day is 8 hours but includes 1 hour of breaks, and 1 hour of general administration, then the direct patient time is only 6 hours. The cost per hour is then: = 1380.
C16: Nurses | D16: =E16-0.1*E16 -> 13.5 | E16: 15 | F16: =E16+0.1*E16 -> 16.5 | G16: =E16 -> 15 | H16: hour
C17: Lay provider | D17: 7.2 | E17: 8 | F17: 8.8 | G17: 8 | H17: hour
C18: Lab techs. | D18: 13.5 | E18: 15 | F18: 16.5 | G18: 15 | H18: hour
C19: Other staff types, insert rows | D19: 0 | F19: 0 | G19: 0
B20: Supplies | C20: ART 1st line | E20: 150 | H20: Annual supply
C21: ART 2nd line | E21: 500 | H21: Annual supply
C22: PrEP | H22: Monthly supply
B23: Transport | C23: Petrol | H23: per km/liter [removed what is not relevant]
B24: Other inputs
C25: Programme cost lump sum changed by 20% | D25: 0.12 | E25: 0.15 | F25: 0.18 | K25: =46*5 -> 230
K26: =K25*6 -> 1380
C28: Change in input quantities | D28: Low | E28: Base Case | F28: High | G28: Named Cell
C29: Annual ART visits
C30: HIV testing yield
C31: Linkage to treatment after testing HIV+
C32: Retention rates
C33: % of ART clients on 2nd line therapy | D33: 0.15 | E33: 0.2 | F33: 0.25 | G33: =E33 -> 0.2
C37: Scenarios | D37: Low | E37: Base Case | F37: High | G37: Named Cell | H37: State assumptions on what these would mean for your price, quantity and coverage parameters
C38: Coverage: variation to coverage targets for [state specific intervention] | D38: 0.7 | E38: 0.8 | F38: 0.9 | G38: =E38 -> 0.8
C39: HIV incidence -% change from base line -10%, +10% | D39: =E39-(10%*E39) -> 0.018 | E39: 0.02 | F39: =E39+(10%*E39) -> 0.022
C40: Integration of PreP into FSW outreach
C41: Integration of HIV testing in STI clinics
A47: Step 3: paste your Base case in E56.
B48: If exploring impact on total costs, then Copy value, and paste special "value" from 3.3 Budget Table. Total budget value.
B49: If exploring impact on a unit cot, then use the unit cost value from 3.1
A50: Step 4: Run the analyses and use "paste special - Value" to document the effect in the table below. Remember to document what you are varying in Column C, and the range of the variation.
B51: Paste each univariate analysis, high and low values in here, and make sure to note down in column C what you have varied and by ho much. This can be a % change or an absolute change.
A52: Step 5: From the univariate analyis, review which values generate the high and low values, insert them all together to get the best and worst case scenarios. REMEMBER it is not always the low value assumption that leads to the lowest unit/total cost, so you will need to pay close attention as it might be a high input value reduces costs, for example high coverage might reduce unit costs, but will increase total costs.
C55: Model Assumptions | D55: Low | E55: Base case Cost | F55: High
C56: Unit or Total cost being explored | E56: 9.85
C57: order from smallest variation to largest variation to generate the torpedo diagramme below
B58: examples | C58: Change to dolutegraver in 1st line | D58: 9.6 | F58: 10.15
B59: examples | C59: Discount rate 3% (1%,13%) | D59: 9.78 | F59: 9.87
B60: examples | C60: Salary (-10%,+10%) | D60: 9.3 | F60: 10.4 | H60: Format the torpedo graph such that the vertical axis crosses at your base value
B61: examples | C61: Economic life years of other capital 5 yrs (2.5,7.5yrs) | D61: 9.64 | F61: 10.43
B62: examples | C62: Kit quant up and down (-10%,+10%) | D62: 8.93 | F62: 10.97
B63: examples | C63: kit price $2.24 ($1,$3.4) | D63: 8.7 | F63: 10.98
B64: examples | C64: Allocation of central cost (% of kits distributed, % of distributors) | D64: 8.83 | F64: 11.95
B65: set all parameters to the least or most expensive value | C65: Best & worse case scenario | D65: 6.45 | F65: 16.91
M72: Don't change these cells as it reset the min and max axis value
M75: =ABS(BaseCase-D58) -> 0.25 | N75: =ABS(BaseCase-F58) -> 0.3
M76: 0.07 | N76: 0.02
M77: 0.55 | N77: 0.55
M78: 0.21 | N78: 0.58
M79: 0.92 | N79: 1.12
M80: 1.15 | N80: 1.13
M81: 1.02 | N81: 2.1
M82: 3.4 | N82: 7.06
M84: =(ROUNDDOWN(0.7*(SAMax-BaseCase),0)) -> 5 | O84: =Module3.setChartAxis("4.2 SA", "Tornado", "Min", "Value", "Primary",M84) -> Value Primary Min: 5
M85: =ROUNDUP((MAX(M75:N82)+BaseCase), 0) -> 17 | O85: =Module3.setChartAxis("4.2 SA", "Tornado", "Max", "Value", "Primary",SAMax) -> Value Primary Max: 17

Sheet 4.2 Scenario Analysis (hidden)
A1: Fern

Sheet 4.4 Equity Analysis (hidden)
A1: Fern

Sheet 5.1 TRAC
B3: CHAPTER 11: TRANSPARENT REPORTING AND ANALYSIS FOR COSTINGS (TRAC)
B4: Instructions: Please complete this table as part of final submission for review.
A6: NSP Alignment | F6: REPORTING COST ESTIMATE | K6: COST ESTIMATION TYPE & SOURCES | Q6: DETAILS ON INGREDIENTS AND ADAPTATIONS | Y6: Other Comments
A7: Intervention | B7: Target Populations | C7: Activities | D7: Provider-led or community-led | E7: Included in Costing? | F7: Cost component | G7: Estimated Cost Value | H7: currency | I7: currency year | J7: Output Unit | K7: Method for Estimation | L7: Primary Source(s) | M7: Source Type | N7: Modeled/Observed | O7: Financial/Economic | P7: Full/Incremental | Q7: Service-level human resources | R7: Service-level overhead costs | S7: Above service-level (indirect) costs? | T7: Supplies | U7: Adjusted for historical inflation? | V7: Adapted cost for specific ingredients? | W7: Other adaptations (scale, output, other)? | X7: Assumptions or notes
A8: List every intervention listed in the planning document | B8: Specify population the intervention seeks to target. N/A for program support or other interventions. | C8: Specify activities that make up each intervention | D8: Is this a community led resposed (CLR) driven and delivered by affected communities, or by health or other professional providers ? | E8: Ta | F8: Specify which input or activity cost is being reported in this row, e.g. drug costs or staff costs, or post-test counselling. If it is the full cost, enter Full | G8: Insert final cost(s) value used. | H8: specify currency | I8: currency reporting year | J8: per measure of output (example: per person tested) | K8: Unit cost adapted from literature (adapatation approach), Unit cost modeled from ingredient based costing (IBC), Lump Sum or % of direct costs. | L8: Identify primary source(s) used. If published source: input study author, year, and DOI. If unpublished documents (grey literature): input title, year, author, if available website, data accessed. If Key informant: specify role and institution, date discussed. | M8: Specify source type: Peer-reviewed study, Expenditure report, Budget, Key Informant Interview, Country modeled costing, NASA report. If other, specify. | N8: Was this unit costs modelled based on how the intervention should work or valued based on observed implementation? | O8: Is this cost financial (an expenditure) or economic (includes values for donated goods and services)? | P8: Does this include only the extra costs to add it on to existing services (Incremental) or include the full cost of all activities needed to run the intervention including a shared costs(Full) | Q8: Does this estimate include cost of human resources needed to administer intervention or are they accounted for elsewhere? If so specify where in assumptions. If excluded, justify. | R8: Does this estimate include service-level overhead costs or are they accounted for elsewhere? If so specify where in assumptions. If excluded, justify. | S8: Does this estimate include above-service-level (or indirect) costs or are they accounted for elsewhere? If so specify where in assumptions. If excluded, justify. | T8: Does this estimate include cost of supplies or are they accounted for elsewhere? If so specify where in assumptions. If excluded, justify. | U8: Was this estimate adjusted for historical inflation? If Not, justify. | V8: Was this estimate adapted for differing ingredients or costs? | W8: Where other adaptations made? If yes, specify in assumptions or notes. | X8: Specify what assumptions were made and data manipulations applied for estimate. | Y8: Provide justifications, or any other comments here.
A9: examples:
A10: VMMC | B10: Men | C10: Facility-based VMMC service including client assessment and counseling and VMMC itself. | D10: No | E10: Yes | F10: VMMC surgery | G10: 25.19 | H10: USD | I10: 2023 | J10: per person circumcised | K10: Adapt existing unit cost | L10: Hewett, 2016 https://doi.org/10.1186/s12889-016-3450-x | M10: Published peer-reviewed | N10: Observed | O10: Financial | P10: Full | Q10: yes | R10: yes | S10: Yes | T10: Yes | U10: yes | V10: no
A11: VMMC | B11: Men | C11: (1) Demand creation communication; (2) peer promoters; (3) separate waiting and group education areas for men aged ≥20 years during service delivery; (4) engagement of female partners | D11: Partially | E11: yes | F11: VMMC demand creation | G11: =((2960.56+3616.2)/2)*0.85 -> 2795.123 | H11: USD | I11: 2018 | J11: per region per campaign | K11: Lumpsum | L11: Torres-Rueda 2018 https://journals.lww.com/jaids/fulltext/2018/07010/cost_and_cost_effectiveness_of_a_demand_creation.5.aspx | M11: Published peer-reviewed | N11: Observed | O11: Economic | P11: Incremental | Q11: yes | R11: No, included in the main VMMC costs | S11: No, only direct costs for demand creation included | T11: Yes | U11: Yes | V11: Yes, female engement activity removed (roughtly estimated as 15% of cost), | W11: Yes, Average of the 2 regional costs reported in the paper was taken

Sheet 5.2 Results Summary
B3: CHAPTER 11: PACKAGING THE COST ANALYSIS FOR USE
B5: Presenting intuitive figures and graphs
C11: 2025 | D11: =C11+1 -> 2026 | E11: =D11+1 -> 2027 | F11: 2028 | G11: 2029 | H11: 2030 | I11: Total | J11: %
B12: Row Labels | C12: Sum of 2025 | D12: Sum of 2026 | E12: Sum of 2027 | F12: Sum of 2028 | G12: Sum of 2029 | H12: Sum of 2030 | N12: Total in Millions USD | O12: =C11 -> 2025 | P12: =D11 -> 2026 | Q12: 2027 | R12: 2028 | S12: 2029 | T12: 2030
B13: 1. Accelerate prevention to reduce new HIV, TB and STI infections. | C13: 878124144.5 | D13: 878124144.5 | E13: 878124144.5 | F13: 878124144.5 | G13: 878124144.5 | H13: 479524144.5 | I13: =SUM(C13:H13) -> 4870144867 | J13: =I13/I$18 -> 0.5381777458 | M13: =B13 -> 1. Accelerate prevention to reduce new HIV, TB and STI infections. | N13: =SUM(O13:T13) -> 4870.144867 | O13: =C13/1000000 -> 878.1241445 | P13: =D13/1000000 -> 878.1241445 | Q13: =E13/1000000 -> 878.1241445 | R13: =F13/1000000 -> 878.1241445 | S13: =G13/1000000 -> 878.1241445 | T13: =H13/1000000 -> 479.5241445
B14: 2. Reduce morbidity and mortality by providing treatment, care and adherence support for all. | M14: =B14 -> 2. Reduce morbidity and mortality by providing treatment, care and adherence support for all. | N14: =SUM(O14:T14) -> 0 | O14: =C14/1000000 -> 0 | P14: 0 | Q14: 0 | R14: 0 | S14: 0 | T14: 0
B15: 3. Reach all key and vulnerable populations with comprehensive, customised and targeted interventions. | C15: 5618000 | D15: 5618000 | E15: 5618000 | F15: 5618000 | G15: 5618000 | H15: 5618000 | I15: =SUM(C15:H15) -> 33708000 | J15: =I15/I$18 -> 0.003724919063 | M15: 3. Reach all key and vulnerable populations with comprehensive, customised and targeted interventions. | N15: 33.708 | O15: 5.618 | P15: 5.618 | Q15: 5.618 | R15: 5.618 | S15: 5.618 | T15: 5.618
B16: 5. Ground the response to HIV, TB and STIs in human rights principles and approaches | C16: 690911879 | D16: 690911879 | E16: 690911879 | F16: 690911879 | G16: 690911879 | H16: 690911879 | I16: =SUM(C16:H16) -> 4145471274 | J16: =I16/I$18 -> 0.4580973352 | M16: 5. Ground the response to HIV, TB and STIs in human rights principles and approaches | N16: 4145.471274 | O16: 690.911879 | P16: 690.911879 | Q16: 690.911879 | R16: 690.911879 | S16: 690.911879 | T16: 690.911879
B17: 9. Critical enablers to maximise the reach and impact of National response to HIV, TB and STIs | M17: 9. Critical enablers to maximise the reach and impact of National response to HIV, TB and STIs | N17: 0 | O17: 0 | P17: 0 | Q17: 0 | R17: 0 | S17: 0 | T17: 0
B18: Grand Total | C18: 1574654024 | D18: 1574654024 | E18: 1574654024 | F18: 1574654024 | G18: 1574654024 | H18: 1176054024 | I18: =SUM(C18:H18) -> 9049324141 | M18: =B18 -> Grand Total | O18: =C18/1000000 -> 1574.654024 | P18: =D18/1000000 -> 1574.654024 | Q18: =E18/1000000 -> 1574.654024 | R18: =F18/1000000 -> 1574.654024 | S18: =G18/1000000 -> 1574.654024 | T18: =H18/1000000 -> 1176.054024
E31: c
